{"text_format":"3","workbook":"xlsx","n_sheets":17,"sheets":["Exposic. Actual por Municipios","Exposic. Futura por Municipios","Sensibilidad por tipo proyecto","Vulnerabilidad. Fase 1","Análisis de impacto","Probab. Precipitaciones","Fase 2. Precipitaciones","Probab. Temperatura","Fase 2. Temperatura","Probab. Vientos","Fase 2. Vientos","Probab. Olas de Calor","Fase 2. Olas calor","Probab. Inund. Mar","Fase 2. Indund. Mar","Probab. Inund. Fluvial","Fase 2. Indund. Fluvial"],"not_rendered":{"defined_names":18},"read":"whole","date_system":"1900"}

{"sheet":"Exposic. Actual por Municipios","index":0,"n_rows":314,"n_cols":7,"rows_kept":314,"hidden":true}
["Exposición actual a amenazas climáticas por municipios","Cambio en el régimen de las precipitaciones","Subida de temperatura","Cambio en el régimen de vientos","Olas de calor","Inundaciones marítimas","Inundaciones fluviales"]
["A Arnoia","Bajo","Medio","Bajo","Medio","No aplica","Bajo"]
["A Baña","Medio","Bajo","Medio","Bajo","No aplica","Bajo"]
["A Bola","Bajo","Medio","Bajo","Medio","No aplica","Bajo"]
["A Cañiza","Medio","Medio","Bajo","Medio","No aplica","Bajo"]
["A Capela","Bajo","Bajo","Medio","Bajo","No aplica","Bajo"]
["A Coruña","Bajo","Bajo","Medio","Medio","Bajo","Bajo"]
["A Estrada","Medio","Medio","Bajo","Bajo","No aplica","Bajo"]
["A Fonsagrada","Bajo","Bajo","Bajo","Bajo","No aplica","Bajo"]
["A Guarda","Medio","Bajo","Medio","Bajo","Medio","Bajo"]
["A Gudiña","Medio","Medio","Bajo","Medio","No aplica","Bajo"]
["A Illa de Arousa","Medio","Medio","Medio","Bajo","Bajo","Bajo"]
["A Lama","Medio","Medio","Bajo","Bajo","No aplica","Bajo"]
["A Laracha","Bajo","Bajo","Medio","Bajo","Bajo","Bajo"]
["A Merca","Bajo","Medio","Bajo","Medio","No aplica","Bajo"]
["A Mezquita","Medio","Medio","Medio","Medio","No aplica","Bajo"]
["A Pastoriza","Bajo","Bajo","Medio","Bajo","No aplica","Bajo"]
["A Peroxa","Bajo","Medio","Bajo","Bajo","No aplica","Bajo"]
["A Pobra de Trives","Bajo","Medio","Bajo","Medio","No aplica","Bajo"]
["A Pobra do Brollón","Bajo","Medio","Bajo","Medio","No aplica","Bajo"]
["A Pobra do Caramiñal","Medio","Bajo","Medio","Medio","Bajo","Bajo"]
["A Pontenova","Bajo","Bajo","Bajo","Bajo","No aplica","Bajo"]
["A Rúa","Bajo","Medio","Bajo","Medio","No aplica","Bajo"]
["A Teixeira","Bajo","Medio","Bajo","Medio","No aplica","Bajo"]
["A Veiga","Bajo","Medio","Bajo","Medio","No aplica","Bajo"]
["Abadín","Bajo","Bajo","Medio","Bajo","No aplica","Bajo"]
["Abegondo","Bajo","Bajo","Bajo","Bajo","No aplica","Bajo"]
["Agolada","Bajo","Medio","Bajo","Bajo","No aplica","Bajo"]
["Alfoz","Bajo","Bajo","Medio","Bajo","No aplica","Bajo"]
["Allariz","Bajo","Medio","Bajo","Medio","No aplica","Bajo"]
["Ames","Medio","Bajo","Medio","Bajo","No aplica","Bajo"]
["Amoeiro","Bajo","Medio","Bajo","Bajo","No aplica","Bajo"]
["Antas de Ulla","Bajo","Bajo","Bajo","Bajo","No aplica","Bajo"]
["Aranga","Bajo","Bajo","Medio","Bajo","No aplica","Bajo"]
["Arbo","Medio","Medio","Bajo","Medio","No aplica","Bajo"]
["Ares","Bajo","Bajo","Medio","Medio","Bajo","Bajo"]
["Arteixo","Bajo","Bajo","Medio","Bajo","Bajo","Bajo"]
["Arzúa","Bajo","Bajo","Bajo","Bajo","No aplica","Bajo"]
["As Neves","Medio","Medio","Bajo","Medio","No aplica","Bajo"]
["As Nogais","Bajo","Medio","Bajo","Bajo","No aplica","Bajo"]
["As Pontes de García Rodríguez","Bajo","Bajo","Medio","Bajo","No aplica","Bajo"]
["As Somozas","Bajo","Bajo","Medio","Bajo","No aplica","Bajo"]
["Avión","Medio","Medio","Bajo","Bajo","No aplica","Bajo"]
["Baiona","Medio","Bajo","Medio","Medio","Medio","Bajo"]
["Baleira","Bajo","Bajo","Bajo","Bajo","No aplica","Bajo"]
["Baltar","Bajo","Medio","Bajo","Medio","No aplica","Bajo"]
["Bande","Bajo","Medio","Bajo","Medio","No aplica","Bajo"]
["Baños de Molgas","Bajo","Medio","Bajo","Medio","No aplica","Bajo"]
["Baralla","Bajo","Medio","Bajo","Bajo","No aplica","Bajo"]
["Barbadás","Bajo","Medio","Bajo","Medio","No aplica","Bajo"]
["Barreiros","Bajo","Bajo","Bajo","Bajo","Bajo","Bajo"]
["Barro","Medio","Medio","Bajo","Bajo","No aplica","Bajo"]
["Beade","Bajo","Medio","Bajo","Bajo","No aplica","Medio"]
["Beariz","Medio","Medio","Bajo","Bajo","No aplica","Bajo"]
["Becerreá","Bajo","Medio","Bajo","Bajo","No aplica","Bajo"]
["Begonte","Bajo","Bajo","Bajo","Bajo","No aplica","Medio"]
["Bergondo","Bajo","Bajo","Bajo","Bajo","Alto","Bajo"]
["Betanzos","Bajo","Bajo","Bajo","Bajo","Alto","Medio"]
["Boborás","Bajo","Medio","Bajo","Bajo","No aplica","Bajo"]
["Boimorto","Bajo","Bajo","Medio","Bajo","No aplica","Bajo"]
["Boiro","Medio","Medio","Medio","Medio","Bajo","Bajo"]
["Boqueixón","Medio","Bajo","Bajo","Bajo","No aplica","Bajo"]
["Bóveda","Bajo","Medio","Bajo","Bajo","No aplica","Bajo"]
["Brión","Medio","Medio","Bajo","Bajo","No aplica","Bajo"]
["Bueu","Medio","Bajo","Medio","Bajo","Bajo","Bajo"]
["Burela","Bajo","Bajo","Medio","Medio","Bajo","Bajo"]
["Cabana de Bergantiños","Medio","Bajo","Medio","Medio","Bajo","Bajo"]
["Cabanas","Bajo","Bajo","Medio","Bajo","Bajo","Bajo"]
["Caldas de Reis","Medio","Medio","Bajo","Bajo","Bajo","Medio"]
["Calvos de Randín","Bajo","Medio","Medio","Medio","No aplica","Bajo"]
["Camariñas","Medio","Bajo","Medio","Medio","Medio","Bajo"]
["Cambados","Medio","Medio","Bajo","Bajo","Bajo","Medio"]
["Cambre","Bajo","Bajo","Medio","Bajo","Bajo","Bajo"]
["Campo Lameiro","Medio","Medio","Bajo","Bajo","No aplica","Bajo"]
["Cangas","Medio","Bajo","Medio","Bajo","Bajo","Bajo"]
["Carballeda de Avia","Bajo","Medio","Bajo","Bajo","No aplica","Bajo"]
["Carballeda de Valdeorras","Bajo","Medio","Bajo","Medio","No aplica","Bajo"]
["Carballedo","Bajo","Medio","Bajo","Bajo","No aplica","Bajo"]
["Carballo","Medio","Bajo","Medio","Bajo","Bajo","Bajo"]
["Cariño","Medio","Bajo","Medio","Medio","Bajo","Bajo"]
["Carnota","Medio","Bajo","Medio","Medio","Bajo","Bajo"]
["Carral","Bajo","Bajo","Medio","Bajo","No aplica","Bajo"]
["Cartelle","Bajo","Medio","Bajo","Medio","No aplica","Bajo"]
["Castrelo de Miño","Bajo","Medio","Bajo","Medio","No aplica","Bajo"]
["Castrelo do Val","Medio","Medio","Bajo","Medio","No aplica","Bajo"]
["Castro Caldelas","Bajo","Medio","Bajo","Medio","No aplica","Bajo"]
["Castro de Rei","Bajo","Bajo","Medio","Bajo","No aplica","Medio"]
["Castroverde","Bajo","Bajo","Bajo","Bajo","No aplica","Bajo"]
["Catoira","Medio","Medio","Bajo","Bajo","Bajo","Bajo"]
["Cedeira","Medio","Bajo","Medio","Medio","Bajo","Bajo"]
["Cee","Medio","Bajo","Medio","Medio","Bajo","Bajo"]
["Celanova","Bajo","Medio","Bajo","Medio","No aplica","Bajo"]
["Cenlle","Bajo","Medio","Bajo","Bajo","No aplica","Bajo"]
["Cerceda","Medio","Bajo","Medio","Bajo","No aplica","Bajo"]
["Cerdedo-Cotobade","Medio","Medio","Bajo","Bajo","No aplica","Bajo"]
["Cerdido","Medio","Bajo","Medio","Medio","No aplica","Bajo"]
["Cervantes","Bajo","Medio","Bajo","Bajo","No aplica","Bajo"]
["Cervo","Bajo","Bajo","Medio","Medio","Bajo","Bajo"]
["Chandrexa de Queixa","Medio","Medio","Bajo","Medio","No aplica","Bajo"]
["Chantada","Bajo","Medio","Bajo","Bajo","No aplica","Bajo"]
["Coirós","Bajo","Bajo","Bajo","Bajo","Bajo","Bajo"]
["Coles","Bajo","Medio","Bajo","Bajo","No aplica","Bajo"]
["Corcubión","Medio","Bajo","Medio","Medio","Bajo","Bajo"]
["Coristanco","Medio","Bajo","Medio","Bajo","No aplica","Bajo"]
["Cortegada","Bajo","Medio","Bajo","Medio","No aplica","Bajo"]
["Cospeito","Bajo","Bajo","Medio","Bajo","No aplica","Medio"]
["Covelo","Medio","Medio","Bajo","Medio","No aplica","Bajo"]
["Crecente","Bajo","Medio","Bajo","Medio","No aplica","Bajo"]
["Cualedro","Bajo","Medio","Bajo","Medio","No aplica","Bajo"]
["Culleredo","Bajo","Bajo","Medio","Bajo","Medio","Bajo"]
["Cuntis","Medio","Medio","Bajo","Bajo","No aplica","Bajo"]
["Curtis","Bajo","Bajo","Medio","Bajo","No aplica","Bajo"]
["Dodro","Medio","Medio","Bajo","Bajo","No aplica","Medio"]
["Dozón","Bajo","Medio","Bajo","Bajo","No aplica","Bajo"]
["Dumbría","Medio","Bajo","Medio","Medio","Bajo","Bajo"]
["Entrimo","Bajo","Medio","Medio","Medio","No aplica","Bajo"]
["Esgos","Medio","Medio","Bajo","Medio","No aplica","Bajo"]
["Fene","Bajo","Bajo","Medio","Bajo","Bajo","Bajo"]
["Ferrol","Bajo","Bajo","Alto","Medio","Bajo","Bajo"]
["Fisterra","Medio","Bajo","Alto","Medio","Medio","Bajo"]
["Folgoso do Courel","Medio","Medio","Bajo","Medio","No aplica","Bajo"]
["Forcarei","Medio","Medio","Bajo","Bajo","No aplica","Bajo"]
["Fornelos de Montes","Medio","Medio","Bajo","Bajo","No aplica","Bajo"]
["Foz","Bajo","Bajo","Medio","Alto","Bajo","Bajo"]
["Frades","Medio","Bajo","Medio","Bajo","No aplica","Bajo"]
["Friol","Bajo","Bajo","Medio","Bajo","No aplica","Bajo"]
["Gomesende","Bajo","Medio","Bajo","Medio","No aplica","Bajo"]
["Gondomar","Medio","Medio","Medio","Medio","Bajo","Bajo"]
["Guitiriz","Bajo","Bajo","Medio","Bajo","No aplica","Bajo"]
["Guntín","Bajo","Bajo","Bajo","Bajo","No aplica","Bajo"]
["Irixoa","Bajo","Bajo","Medio","Bajo","No aplica","Bajo"]
["Lalín","Medio","Medio","Bajo","Bajo","No aplica","Bajo"]
["Láncara","Bajo","Medio","Bajo","Bajo","No aplica","Bajo"]
["Larouco","Bajo","Medio","Bajo","Medio","No aplica","Bajo"]
["Laxe","Medio","Bajo","Medio","Medio","Bajo","Bajo"]
["Laza","Medio","Medio","Bajo","Medio","No aplica","Bajo"]
["Leiro","Bajo","Medio","Bajo","Bajo","No aplica","Bajo"]
["Lobeira","Bajo","Medio","Bajo","Medio","No aplica","Bajo"]
["Lobios","Bajo","Medio","Medio","Medio","No aplica","Bajo"]
["Lourenzá","Bajo","Bajo","Bajo","Bajo","No aplica","Bajo"]
["Lousame","Medio","Medio","Bajo","Bajo","No aplica","Bajo"]
["Lugo","Bajo","Bajo","Bajo","Bajo","No aplica","Bajo"]
["Maceda","Medio","Medio","Bajo","Medio","No aplica","Bajo"]
["Malpica de Bergantiños","Bajo","Bajo","Alto","Alto","Bajo","Bajo"]
["Manzaneda","Bajo","Medio","Bajo","Medio","No aplica","Bajo"]
["Mañón","Bajo","Bajo","Medio","Alto","Bajo","Bajo"]
["Marín","Medio","Medio","Bajo","Bajo","Bajo","Bajo"]
["Maside","Bajo","Medio","Bajo","Bajo","No aplica","Bajo"]
["Mazaricos","Medio","Bajo","Medio","Medio","No aplica","Bajo"]
["Meaño","Medio","Medio","Bajo","Bajo","Bajo","Bajo"]
["Meira","Bajo","Bajo","Bajo","Bajo","No aplica","Bajo"]
["Meis","Medio","Medio","Bajo","Bajo","Bajo","Bajo"]
["Melide","Bajo","Bajo","Medio","Bajo","No aplica","Bajo"]
["Melón","Bajo","Medio","Bajo","Medio","No aplica","Bajo"]
["Mesía","Bajo","Bajo","Medio","Bajo","No aplica","Bajo"]
["Miño","Bajo","Bajo","Bajo","Bajo","Bajo","Bajo"]
["Moaña","Medio","Medio","Bajo","Bajo","Bajo","Bajo"]
["Moeche","Medio","Bajo","Medio","Medio","No aplica","Bajo"]
["Mondariz","Medio","Medio","Bajo","Medio","No aplica","Bajo"]
["Mondariz-Balneario","Medio","Medio","Bajo","Bajo","No aplica","Medio"]
["Mondoñedo","Bajo","Bajo","Medio","Bajo","No aplica","Bajo"]
["Monfero","Bajo","Bajo","Medio","Bajo","No aplica","Bajo"]
["Monforte de Lemos","Bajo","Medio","Bajo","Medio","No aplica","Medio"]
["Montederramo","Medio","Medio","Bajo","Medio","No aplica","Bajo"]
["Monterrei","Bajo","Medio","Bajo","Medio","No aplica","Bajo"]
["Monterroso","Bajo","Bajo","Bajo","Bajo","No aplica","Bajo"]
["Moraña","Medio","Medio","Bajo","Bajo","No aplica","Bajo"]
["Mos","Medio","Medio","Bajo","Bajo","No aplica","Medio"]
["Mugardos","Bajo","Bajo","Medio","Medio","Bajo","Bajo"]
["Muíños","Bajo","Medio","Medio","Medio","No aplica","Bajo"]
["Muras","Bajo","Bajo","Medio","Bajo","No aplica","Bajo"]
["Muros","Medio","Bajo","Medio","Medio","Bajo","Bajo"]
["Muxía","Medio","Bajo","Alto","Alto","Bajo","Bajo"]
["Narón","Bajo","Bajo","Alto","Bajo","Bajo","Bajo"]
["Navia de Suarna","Bajo","Medio","Bajo","Bajo","No aplica","Bajo"]
["Neda","Bajo","Bajo","Medio","Bajo","Medio","Bajo"]
["Negreira","Medio","Bajo","Medio","Bajo","No aplica","Bajo"]
["Negueira de Muñiz","Bajo","Bajo","Bajo","Bajo","No aplica","Bajo"]
["Nigrán","Medio","Medio","Medio","Medio","Medio","Bajo"]
["Nogueira de Ramuín","Medio","Medio","Bajo","Medio","No aplica","Bajo"]
["Noia","Medio","Medio","Bajo","Bajo","Bajo","Bajo"]
["O Barco de Valdeorras","Bajo","Medio","Bajo","Medio","No aplica","Medio"]
["O Bolo","Bajo","Medio","Bajo","Medio","No aplica","Bajo"]
["O Carballiño","Bajo","Medio","Bajo","Bajo","No aplica","Bajo"]
["O Corgo","Bajo","Medio","Bajo","Bajo","No aplica","Bajo"]
["O Grove","Medio","Medio","Medio","Bajo","Bajo","Bajo"]
["O Incio","Bajo","Medio","Bajo","Bajo","No aplica","Bajo"]
["O Irixo","Bajo","Medio","Bajo","Bajo","No aplica","Bajo"]
["O Páramo","Bajo","Medio","Bajo","Bajo","No aplica","Bajo"]
["O Pereiro de Aguiar","Bajo","Medio","Bajo","Bajo","No aplica","Bajo"]
["O Pino","Medio","Bajo","Bajo","Bajo","No aplica","Bajo"]
["O Porriño","Medio","Medio","Bajo","Bajo","No aplica","Medio"]
["O Rosal","Medio","Medio","Medio","Bajo","Bajo","Bajo"]
["O Saviñao","Bajo","Medio","Bajo","Bajo","No aplica","Bajo"]
["O Valadouro","Bajo","Bajo","Medio","Medio","No aplica","Bajo"]
["O Vicedo","Bajo","Bajo","Medio","Alto","Bajo","Bajo"]
["Oia","Medio","Bajo","Medio","Medio","Bajo","Bajo"]
["Oímbra","Bajo","Medio","Bajo","Medio","No aplica","Medio"]
["Oleiros","Bajo","Bajo","Medio","Medio","Medio","Bajo"]
["Ordes","Medio","Bajo","Bajo","Bajo","No aplica","Bajo"]
["Oroso","Medio","Bajo","Bajo","Bajo","No aplica","Bajo"]
["Ortigueira","Medio","Bajo","Medio","Alto","Bajo","Bajo"]
["Os Blancos","Bajo","Medio","Bajo","Medio","No aplica","Bajo"]
["Ourense","Bajo","Medio","Bajo","Bajo","No aplica","Medio"]
["Ourol","Bajo","Bajo","Medio","Bajo","No aplica","Bajo"]
["Outeiro de Rei","Bajo","Bajo","Bajo","Bajo","No aplica","Bajo"]
["Outes","Medio","Medio","Medio","Bajo","Bajo","Bajo"]
["Oza-Cesuras","Bajo","Bajo","Medio","Bajo","No aplica","Bajo"]
["Paderne","Bajo","Bajo","Bajo","Bajo","Medio","Bajo"]
["Paderne de Allariz","Bajo","Medio","Bajo","Medio","No aplica","Bajo"]
["Padrenda","Bajo","Medio","Bajo","Medio","No aplica","Bajo"]
["Padrón","Medio","Medio","Bajo","Bajo","No aplica","Medio"]
["Palas de Rei","Bajo","Bajo","Medio","Bajo","No aplica","Bajo"]
["Pantón","Bajo","Medio","Bajo","Bajo","No aplica","Bajo"]
["Parada de Sil","Medio","Medio","Bajo","Medio","No aplica","Bajo"]
["Paradela","Bajo","Medio","Bajo","Bajo","No aplica","Bajo"]
["Pazos de Borbén","Medio","Medio","Bajo","Bajo","No aplica","Bajo"]
["Pedrafita do Cebreiro","Medio","Medio","Bajo","Medio","No aplica","Bajo"]
["Petín","Bajo","Medio","Bajo","Medio","No aplica","Bajo"]
["Piñor","Bajo","Medio","Bajo","Bajo","No aplica","Bajo"]
["Poio","Medio","Medio","Bajo","Bajo","Bajo","Bajo"]
["Pol","Bajo","Bajo","Medio","Bajo","No aplica","Bajo"]
["Ponte Caldelas","Medio","Medio","Bajo","Bajo","No aplica","Bajo"]
["Ponteareas","Medio","Medio","Bajo","Medio","No aplica","Bajo"]
["Ponteceso","Medio","Bajo","Alto","Alto","Bajo","Bajo"]
["Pontecesures","Medio","Medio","Bajo","Bajo","No aplica","Medio"]
["Pontedeume","Bajo","Bajo","Medio","Medio","Bajo","Bajo"]
["Pontedeva","Bajo","Medio","Bajo","Medio","No aplica","Bajo"]
["Pontevedra","Medio","Medio","Bajo","Bajo","Bajo","Bajo"]
["Porqueira","Bajo","Medio","Bajo","Medio","No aplica","Medio"]
["Portas","Medio","Medio","Bajo","Bajo","Bajo","Bajo"]
["Porto do Son","Medio","Bajo","Medio","Medio","Bajo","Bajo"]
["Portomarín","Bajo","Medio","Bajo","Bajo","No aplica","Bajo"]
["Punxín","Bajo","Medio","Bajo","Bajo","No aplica","Bajo"]
["Quintela de Leirado","Bajo","Medio","Bajo","Medio","No aplica","Bajo"]
["Quiroga","Medio","Medio","Bajo","Medio","No aplica","Bajo"]
["Rábade","Bajo","Bajo","Bajo","Bajo","No aplica","Medio"]
["Rairiz de Veiga","Bajo","Medio","Bajo","Medio","No aplica","Medio"]
["Ramirás","Bajo","Medio","Bajo","Medio","No aplica","Bajo"]
["Redondela","Medio","Medio","Bajo","Bajo","Bajo","Bajo"]
["Rianxo","Medio","Medio","Medio","Bajo","Bajo","Bajo"]
["Ribadavia","Bajo","Medio","Bajo","Medio","No aplica","Medio"]
["Ribadeo","Bajo","Bajo","Medio","Medio","Bajo","Bajo"]
["Ribadumia","Medio","Medio","Bajo","Bajo","Bajo","Medio"]
["Ribas de Sil","Bajo","Medio","Bajo","Medio","No aplica","Bajo"]
["Ribeira","Medio","Bajo","Medio","Medio","Bajo","Bajo"]
["Ribeira de Piquín","Bajo","Bajo","Bajo","Bajo","No aplica","Bajo"]
["Riós","Medio","Medio","Bajo","Medio","No aplica","Bajo"]
["Riotorto","Bajo","Bajo","Bajo","Bajo","No aplica","Bajo"]
["Rodeiro","Bajo","Medio","Bajo","Bajo","No aplica","Bajo"]
["Rois","Medio","Medio","Bajo","Bajo","No aplica","Bajo"]
["Rubiá","Bajo","Medio","Bajo","Medio","No aplica","Bajo"]
["Sada","Bajo","Bajo","Medio","Medio","Bajo","Bajo"]
["Salceda de Caselas","Medio","Medio","Bajo","Medio","No aplica","Medio"]
["Salvaterra de Miño","Medio","Medio","Bajo","Medio","No aplica","Medio"]
["Samos","Medio","Medio","Bajo","Medio","No aplica","Bajo"]
["San Amaro","Bajo","Medio","Bajo","Bajo","No aplica","Bajo"]
["San Cibrao das Viñas","Bajo","Medio","Bajo","Medio","No aplica","Bajo"]
["San Cristovo de Cea","Bajo","Medio","Bajo","Bajo","No aplica","Bajo"]
["San Sadurniño","Medio","Bajo","Medio","Medio","No aplica","Bajo"]
["San Xoán de Río","Bajo","Medio","Bajo","Medio","No aplica","Bajo"]
["Sandiás","Bajo","Medio","Bajo","Medio","No aplica","Alto"]
["Santa Comba","Medio","Bajo","Medio","Bajo","No aplica","Bajo"]
["Santiago de Compostela","Medio","Bajo","Bajo","Bajo","No aplica","Bajo"]
["Santiso","Bajo","Bajo","Bajo","Bajo","No aplica","Bajo"]
["Sanxenxo","Medio","Medio","Bajo","Bajo","Bajo","Bajo"]
["Sarreaus","Bajo","Medio","Bajo","Medio","No aplica","Medio"]
["Sarria","Bajo","Medio","Bajo","Bajo","No aplica","Medio"]
["Silleda","Medio","Medio","Bajo","Bajo","No aplica","Bajo"]
["Sober","Bajo","Medio","Bajo","Medio","No aplica","Bajo"]
["Sobrado","Bajo","Bajo","Medio","Bajo","No aplica","Bajo"]
["Soutomaior","Medio","Medio","Bajo","Bajo","Bajo","Bajo"]
["Taboada","Bajo","Medio","Bajo","Bajo","No aplica","Bajo"]
["Taboadela","Bajo","Medio","Bajo","Medio","No aplica","Bajo"]
["Teo","Medio","Medio","Bajo","Bajo","No aplica","Bajo"]
["Toén","Bajo","Medio","Bajo","Bajo","No aplica","Bajo"]
["Tomiño","Medio","Medio","Medio","Medio","No aplica","Bajo"]
["Toques","Bajo","Bajo","Medio","Bajo","No aplica","Bajo"]
["Tordoia","Medio","Bajo","Medio","Bajo","No aplica","Bajo"]
["Touro","Medio","Bajo","Bajo","Bajo","No aplica","Bajo"]
["Trabada","Bajo","Bajo","Bajo","Bajo","No aplica","Bajo"]
["Trasmiras","Bajo","Medio","Bajo","Medio","No aplica","Alto"]
["Trazo","Medio","Bajo","Bajo","Bajo","No aplica","Bajo"]
["Triacastela","Bajo","Medio","Bajo","Bajo","No aplica","Bajo"]
["Tui","Medio","Medio","Bajo","Medio","No aplica","Medio"]
["Val do Dubra","Medio","Bajo","Medio","Bajo","No aplica","Bajo"]
["Valdoviño","Medio","Bajo","Alto","Medio","Bajo","Bajo"]
["Valga","Medio","Medio","Bajo","Bajo","Bajo","Medio"]
["Vedra","Medio","Bajo","Bajo","Bajo","No aplica","Bajo"]
["Verea","Bajo","Medio","Bajo","Medio","No aplica","Bajo"]
["Verín","Bajo","Medio","Bajo","Medio","No aplica","Medio"]
["Viana do Bolo","Medio","Medio","Medio","Medio","No aplica","Bajo"]
["Vigo","Medio","Medio","Bajo","Bajo","Bajo","Bajo"]
["Vila de Cruces","Medio","Bajo","Bajo","Bajo","No aplica","Bajo"]
["Vilaboa","Medio","Medio","Bajo","Bajo","Bajo","Bajo"]
["Vilagarcía de Arousa","Medio","Medio","Medio","Bajo","Bajo","Bajo"]
["Vilalba","Bajo","Bajo","Medio","Bajo","No aplica","Bajo"]
["Vilamarín","Bajo","Medio","Bajo","Bajo","No aplica","Bajo"]
["Vilamartín de Valdeorras","Medio","Medio","Bajo","Medio","No aplica","Bajo"]
["Vilanova de Arousa","Medio","Medio","Bajo","Bajo","Bajo","Medio"]
["Vilar de Barrio","Bajo","Medio","Bajo","Medio","No aplica","Medio"]
["Vilar de Santos","Bajo","Medio","Bajo","Medio","No aplica","Alto"]
["Vilardevós","Medio","Medio","Bajo","Medio","No aplica","Bajo"]
["Vilariño de Conso","Medio","Medio","Bajo","Medio","No aplica","Bajo"]
["Vilarmaior","Bajo","Bajo","Medio","Bajo","No aplica","Bajo"]
["Vilasantar","Bajo","Bajo","Medio","Bajo","No aplica","Bajo"]
["Vimianzo","Medio","Bajo","Medio","Medio","Bajo","Bajo"]
["Viveiro","Bajo","Bajo","Medio","Alto","Medio","Bajo"]
["Xermade","Bajo","Bajo","Medio","Bajo","No aplica","Bajo"]
["Xinzo de Limia","Bajo","Medio","Bajo","Medio","No aplica","Alto"]
["Xove","Bajo","Bajo","Medio","Alto","Bajo","Bajo"]
["Xunqueira de Ambía","Bajo","Medio","Bajo","Medio","No aplica","Medio"]
["Xunqueira de Espadanedo","Medio","Medio","Bajo","Medio","No aplica","Bajo"]
["Zas","Medio","Bajo","Medio","Medio","No aplica","Bajo"]

{"sheet":"Exposic. Futura por Municipios","index":1,"n_rows":314,"n_cols":7,"rows_kept":314,"hidden":true}
["Exposición futura a amenazas climáticas por municipios","Cambio en el régimen de las precipitaciones","Subida de temperatura","Cambio en el régimen de vientos","Olas de calor","Inundaciones marítimas","Inundaciones fluviales"]
["A Arnoia","Bajo","Medio","Bajo","Alto","No aplica","No aplica"]
["A Baña","Medio","Medio","Medio","Alto","No aplica","No aplica"]
["A Bola","Bajo","Medio","Bajo","Alto","No aplica","No aplica"]
["A Cañiza","Medio","Alto","Bajo","Alto","No aplica","No aplica"]
["A Capela","Bajo","Bajo","Medio","Medio","No aplica","No aplica"]
["A Coruña","Bajo","Bajo","Medio","Alto","No aplica","No aplica"]
["A Estrada","Medio","Medio","Bajo","Medio","No aplica","No aplica"]
["A Fonsagrada","Bajo","Medio","Bajo","Medio","No aplica","No aplica"]
["A Guarda","Medio","Medio","Medio","Medio","No aplica","No aplica"]
["A Gudiña","Medio","Medio","Bajo","Alto","No aplica","No aplica"]
["A Illa de Arousa","Medio","Medio","Medio","Medio","No aplica","No aplica"]
["A Lama","Medio","Medio","Bajo","Alto","No aplica","No aplica"]
["A Laracha","Medio","Bajo","Medio","Alto","No aplica","No aplica"]
["A Merca","Bajo","Medio","Bajo","Alto","No aplica","No aplica"]
["A Mezquita","Medio","Medio","Medio","Alto","No aplica","No aplica"]
["A Pastoriza","Bajo","Medio","Medio","Medio","No aplica","No aplica"]
["A Peroxa","Medio","Medio","Bajo","Medio","No aplica","No aplica"]
["A Pobra de Trives","Bajo","Medio","Bajo","Alto","No aplica","No aplica"]
["A Pobra do Brollón","Bajo","Medio","Bajo","Alto","No aplica","No aplica"]
["A Pobra do Caramiñal","Medio","Medio","Medio","Alto","No aplica","No aplica"]
["A Pontenova","Bajo","Medio","Bajo","Medio","No aplica","No aplica"]
["A Rúa","Bajo","Medio","Bajo","Alto","No aplica","No aplica"]
["A Teixeira","Bajo","Medio","Bajo","Alto","No aplica","No aplica"]
["A Veiga","Bajo","Medio","Bajo","Alto","No aplica","No aplica"]
["Abadín","Bajo","Bajo","Medio","Medio","No aplica","No aplica"]
["Abegondo","Bajo","Bajo","Bajo","Medio","No aplica","No aplica"]
["Agolada","Bajo","Medio","Bajo","Medio","No aplica","No aplica"]
["Alfoz","Bajo","Bajo","Medio","Alto","No aplica","No aplica"]
["Allariz","Bajo","Medio","Bajo","Alto","No aplica","No aplica"]
["Ames","Medio","Medio","Medio","Medio","No aplica","No aplica"]
["Amoeiro","Medio","Medio","Bajo","Medio","No aplica","No aplica"]
["Antas de Ulla","Bajo","Medio","Bajo","Medio","No aplica","No aplica"]
["Aranga","Bajo","Bajo","Medio","Medio","No aplica","No aplica"]
["Arbo","Medio","Alto","Bajo","Alto","No aplica","No aplica"]
["Ares","Bajo","Bajo","Medio","Alto","No aplica","No aplica"]
["Arteixo","Medio","Bajo","Medio","Alto","No aplica","No aplica"]
["Arzúa","Bajo","Medio","Bajo","Medio","No aplica","No aplica"]
["As Neves","Medio","Alto","Bajo","Alto","No aplica","No aplica"]
["As Nogais","Bajo","Medio","Bajo","Medio","No aplica","No aplica"]
["As Pontes de García Rodríguez","Bajo","Medio","Medio","Medio","No aplica","No aplica"]
["As Somozas","Bajo","Bajo","Medio","Medio","No aplica","No aplica"]
["Avión","Medio","Medio","Bajo","Medio","No aplica","No aplica"]
["Baiona","Medio","Medio","Medio","Alto","No aplica","No aplica"]
["Baleira","Bajo","Medio","Bajo","Medio","No aplica","No aplica"]
["Baltar","Bajo","Medio","Bajo","Alto","No aplica","No aplica"]
["Bande","Bajo","Medio","Bajo","Alto","No aplica","No aplica"]
["Baños de Molgas","Bajo","Medio","Bajo","Alto","No aplica","No aplica"]
["Baralla","Bajo","Medio","Bajo","Medio","No aplica","No aplica"]
["Barbadás","Bajo","Medio","Bajo","Alto","No aplica","No aplica"]
["Barreiros","Bajo","Bajo","Bajo","Alto","No aplica","No aplica"]
["Barro","Medio","Medio","Bajo","Medio","No aplica","No aplica"]
["Beade","Bajo","Medio","Bajo","Medio","No aplica","No aplica"]
["Beariz","Medio","Medio","Bajo","Medio","No aplica","No aplica"]
["Becerreá","Bajo","Medio","Bajo","Medio","No aplica","No aplica"]
["Begonte","Bajo","Medio","Bajo","Medio","No aplica","No aplica"]
["Bergondo","Bajo","Bajo","Bajo","Medio","No aplica","No aplica"]
["Betanzos","Bajo","Bajo","Bajo","Medio","No aplica","No aplica"]
["Boborás","Bajo","Medio","Bajo","Medio","No aplica","No aplica"]
["Boimorto","Bajo","Medio","Medio","Medio","No aplica","No aplica"]
["Boiro","Medio","Medio","Medio","Alto","No aplica","No aplica"]
["Boqueixón","Medio","Medio","Bajo","Medio","No aplica","No aplica"]
["Bóveda","Bajo","Medio","Bajo","Medio","No aplica","No aplica"]
["Brión","Medio","Medio","Bajo","Medio","No aplica","No aplica"]
["Bueu","Medio","Medio","Medio","Alto","No aplica","No aplica"]
["Burela","Bajo","Bajo","Medio","Alto","No aplica","No aplica"]
["Cabana de Bergantiños","Medio","Bajo","Medio","Alto","No aplica","No aplica"]
["Cabanas","Bajo","Bajo","Medio","Medio","No aplica","No aplica"]
["Caldas de Reis","Medio","Medio","Bajo","Medio","No aplica","No aplica"]
["Calvos de Randín","Bajo","Medio","Medio","Alto","No aplica","No aplica"]
["Camariñas","Medio","Bajo","Medio","Alto","No aplica","No aplica"]
["Cambados","Medio","Medio","Bajo","Medio","No aplica","No aplica"]
["Cambre","Bajo","Bajo","Medio","Medio","No aplica","No aplica"]
["Campo Lameiro","Medio","Medio","Bajo","Medio","No aplica","No aplica"]
["Cangas","Medio","Medio","Medio","Alto","No aplica","No aplica"]
["Carballeda de Avia","Bajo","Medio","Bajo","Medio","No aplica","No aplica"]
["Carballeda de Valdeorras","Bajo","Medio","Bajo","Alto","No aplica","No aplica"]
["Carballedo","Medio","Medio","Bajo","Medio","No aplica","No aplica"]
["Carballo","Medio","Bajo","Medio","Alto","No aplica","No aplica"]
["Cariño","Medio","Bajo","Medio","Alto","No aplica","No aplica"]
["Carnota","Medio","Medio","Medio","Alto","No aplica","No aplica"]
["Carral","Bajo","Bajo","Medio","Medio","No aplica","No aplica"]
["Cartelle","Bajo","Medio","Bajo","Alto","No aplica","No aplica"]
["Castrelo de Miño","Bajo","Medio","Bajo","Alto","No aplica","No aplica"]
["Castrelo do Val","Medio","Medio","Bajo","Alto","No aplica","No aplica"]
["Castro Caldelas","Bajo","Medio","Bajo","Alto","No aplica","No aplica"]
["Castro de Rei","Bajo","Medio","Medio","Medio","No aplica","No aplica"]
["Castroverde","Bajo","Medio","Bajo","Medio","No aplica","No aplica"]
["Catoira","Medio","Medio","Bajo","Medio","No aplica","No aplica"]
["Cedeira","Medio","Bajo","Medio","Alto","No aplica","No aplica"]
["Cee","Medio","Bajo","Medio","Alto","No aplica","No aplica"]
["Celanova","Bajo","Medio","Bajo","Alto","No aplica","No aplica"]
["Cenlle","Bajo","Medio","Bajo","Medio","No aplica","No aplica"]
["Cerceda","Medio","Bajo","Medio","Medio","No aplica","No aplica"]
["Cerdedo-Cotobade","Medio","Medio","Bajo","Medio","No aplica","No aplica"]
["Cerdido","Medio","Bajo","Medio","Alto","No aplica","No aplica"]
["Cervantes","Bajo","Medio","Bajo","Medio","No aplica","No aplica"]
["Cervo","Bajo","Bajo","Medio","Alto","No aplica","No aplica"]
["Chandrexa de Queixa","Medio","Medio","Bajo","Alto","No aplica","No aplica"]
["Chantada","Bajo","Medio","Bajo","Medio","No aplica","No aplica"]
["Coirós","Bajo","Bajo","Bajo","Medio","No aplica","No aplica"]
["Coles","Medio","Medio","Bajo","Medio","No aplica","No aplica"]
["Corcubión","Medio","Bajo","Medio","Alto","No aplica","No aplica"]
["Coristanco","Medio","Bajo","Medio","Alto","No aplica","No aplica"]
["Cortegada","Bajo","Medio","Bajo","Alto","No aplica","No aplica"]
["Cospeito","Bajo","Bajo","Medio","Medio","No aplica","No aplica"]
["Covelo","Medio","Medio","Bajo","Alto","No aplica","No aplica"]
["Crecente","Bajo","Medio","Bajo","Alto","No aplica","No aplica"]
["Cualedro","Bajo","Medio","Bajo","Alto","No aplica","No aplica"]
["Culleredo","Bajo","Bajo","Medio","Medio","No aplica","No aplica"]
["Cuntis","Medio","Medio","Bajo","Medio","No aplica","No aplica"]
["Curtis","Bajo","Bajo","Medio","Medio","No aplica","No aplica"]
["Dodro","Medio","Medio","Bajo","Medio","No aplica","No aplica"]
["Dozón","Bajo","Medio","Bajo","Medio","No aplica","No aplica"]
["Dumbría","Medio","Bajo","Medio","Alto","No aplica","No aplica"]
["Entrimo","Bajo","Medio","Medio","Alto","No aplica","No aplica"]
["Esgos","Medio","Medio","Bajo","Alto","No aplica","No aplica"]
["Fene","Bajo","Bajo","Medio","Alto","No aplica","No aplica"]
["Ferrol","Bajo","Bajo","Alto","Alto","No aplica","No aplica"]
["Fisterra","Medio","Medio","Alto","Alto","No aplica","No aplica"]
["Folgoso do Courel","Medio","Medio","Bajo","Alto","No aplica","No aplica"]
["Forcarei","Medio","Medio","Bajo","Medio","No aplica","No aplica"]
["Fornelos de Montes","Medio","Medio","Bajo","Alto","No aplica","No aplica"]
["Foz","Bajo","Bajo","Medio","Alto","No aplica","No aplica"]
["Frades","Medio","Bajo","Medio","Medio","No aplica","No aplica"]
["Friol","Bajo","Medio","Medio","Medio","No aplica","No aplica"]
["Gomesende","Bajo","Medio","Bajo","Alto","No aplica","No aplica"]
["Gondomar","Medio","Medio","Medio","Alto","No aplica","No aplica"]
["Guitiriz","Bajo","Medio","Medio","Medio","No aplica","No aplica"]
["Guntín","Bajo","Medio","Bajo","Medio","No aplica","No aplica"]
["Irixoa","Bajo","Bajo","Medio","Medio","No aplica","No aplica"]
["Lalín","Medio","Medio","Bajo","Medio","No aplica","No aplica"]
["Láncara","Bajo","Medio","Bajo","Medio","No aplica","No aplica"]
["Larouco","Bajo","Medio","Bajo","Alto","No aplica","No aplica"]
["Laxe","Medio","Bajo","Medio","Alto","No aplica","No aplica"]
["Laza","Medio","Medio","Bajo","Alto","No aplica","No aplica"]
["Leiro","Bajo","Medio","Bajo","Medio","No aplica","No aplica"]
["Lobeira","Bajo","Medio","Bajo","Alto","No aplica","No aplica"]
["Lobios","Bajo","Medio","Medio","Alto","No aplica","No aplica"]
["Lourenzá","Bajo","Bajo","Bajo","Alto","No aplica","No aplica"]
["Lousame","Medio","Medio","Medio","Medio","No aplica","No aplica"]
["Lugo","Bajo","Medio","Bajo","Medio","No aplica","No aplica"]
["Maceda","Medio","Medio","Bajo","Alto","No aplica","No aplica"]
["Malpica de Bergantiños","Medio","Bajo","Alto","Alto","No aplica","No aplica"]
["Manzaneda","Bajo","Medio","Bajo","Alto","No aplica","No aplica"]
["Mañón","Bajo","Bajo","Medio","Alto","No aplica","No aplica"]
["Marín","Medio","Medio","Bajo","Medio","No aplica","No aplica"]
["Maside","Bajo","Medio","Bajo","Medio","No aplica","No aplica"]
["Mazaricos","Medio","Medio","Medio","Alto","No aplica","No aplica"]
["Meaño","Medio","Medio","Bajo","Medio","No aplica","No aplica"]
["Meira","Bajo","Medio","Bajo","Medio","No aplica","No aplica"]
["Meis","Medio","Medio","Bajo","Medio","No aplica","No aplica"]
["Melide","Bajo","Medio","Medio","Medio","No aplica","No aplica"]
["Melón","Bajo","Medio","Bajo","Alto","No aplica","No aplica"]
["Mesía","Bajo","Bajo","Medio","Medio","No aplica","No aplica"]
["Miño","Bajo","Bajo","Bajo","Medio","No aplica","No aplica"]
["Moaña","Medio","Medio","Bajo","Medio","No aplica","No aplica"]
["Moeche","Medio","Bajo","Medio","Alto","No aplica","No aplica"]
["Mondariz","Medio","Medio","Bajo","Alto","No aplica","No aplica"]
["Mondariz-Balneario","Medio","Medio","Bajo","Medio","No aplica","No aplica"]
["Mondoñedo","Bajo","Bajo","Medio","Alto","No aplica","No aplica"]
["Monfero","Bajo","Medio","Medio","Medio","No aplica","No aplica"]
["Monforte de Lemos","Bajo","Medio","Bajo","Alto","No aplica","No aplica"]
["Montederramo","Medio","Medio","Bajo","Alto","No aplica","No aplica"]
["Monterrei","Bajo","Medio","Bajo","Alto","No aplica","No aplica"]
["Monterroso","Bajo","Medio","Bajo","Medio","No aplica","No aplica"]
["Moraña","Medio","Medio","Bajo","Medio","No aplica","No aplica"]
["Mos","Medio","Medio","Bajo","Medio","No aplica","No aplica"]
["Mugardos","Bajo","Bajo","Medio","Alto","No aplica","No aplica"]
["Muíños","Bajo","Medio","Medio","Alto","No aplica","No aplica"]
["Muras","Bajo","Medio","Medio","Alto","No aplica","No aplica"]
["Muros","Medio","Medio","Medio","Alto","No aplica","No aplica"]
["Muxía","Medio","Bajo","Alto","Alto","No aplica","No aplica"]
["Narón","Bajo","Bajo","Alto","Alto","No aplica","No aplica"]
["Navia de Suarna","Bajo","Medio","Bajo","Medio","No aplica","No aplica"]
["Neda","Bajo","Bajo","Medio","Alto","No aplica","No aplica"]
["Negreira","Medio","Medio","Medio","Alto","No aplica","No aplica"]
["Negueira de Muñiz","Bajo","Medio","Bajo","Medio","No aplica","No aplica"]
["Nigrán","Medio","Medio","Medio","Alto","No aplica","No aplica"]
["Nogueira de Ramuín","Medio","Medio","Bajo","Alto","No aplica","No aplica"]
["Noia","Medio","Medio","Medio","Medio","No aplica","No aplica"]
["O Barco de Valdeorras","Bajo","Medio","Bajo","Alto","No aplica","No aplica"]
["O Bolo","Bajo","Medio","Bajo","Alto","No aplica","No aplica"]
["O Carballiño","Bajo","Medio","Bajo","Medio","No aplica","No aplica"]
["O Corgo","Bajo","Medio","Bajo","Medio","No aplica","No aplica"]
["O Grove","Medio","Medio","Medio","Alto","No aplica","No aplica"]
["O Incio","Bajo","Medio","Bajo","Medio","No aplica","No aplica"]
["O Irixo","Bajo","Medio","Bajo","Medio","No aplica","No aplica"]
["O Páramo","Bajo","Medio","Bajo","Medio","No aplica","No aplica"]
["O Pereiro de Aguiar","Medio","Medio","Bajo","Medio","No aplica","No aplica"]
["O Pino","Medio","Medio","Bajo","Medio","No aplica","No aplica"]
["O Porriño","Medio","Medio","Bajo","Medio","No aplica","No aplica"]
["O Rosal","Medio","Medio","Medio","Medio","No aplica","No aplica"]
["O Saviñao","Bajo","Medio","Bajo","Medio","No aplica","No aplica"]
["O Valadouro","Bajo","Bajo","Medio","Alto","No aplica","No aplica"]
["O Vicedo","Bajo","Bajo","Medio","Alto","No aplica","No aplica"]
["Oia","Medio","Medio","Medio","Alto","No aplica","No aplica"]
["Oímbra","Bajo","Medio","Bajo","Alto","No aplica","No aplica"]
["Oleiros","Bajo","Bajo","Medio","Alto","No aplica","No aplica"]
["Ordes","Medio","Medio","Bajo","Medio","No aplica","No aplica"]
["Oroso","Medio","Medio","Bajo","Medio","No aplica","No aplica"]
["Ortigueira","Medio","Bajo","Medio","Alto","No aplica","No aplica"]
["Os Blancos","Bajo","Medio","Bajo","Alto","No aplica","No aplica"]
["Ourense","Medio","Medio","Bajo","Medio","No aplica","No aplica"]
["Ourol","Bajo","Bajo","Medio","Alto","No aplica","No aplica"]
["Outeiro de Rei","Bajo","Medio","Bajo","Medio","No aplica","No aplica"]
["Outes","Medio","Medio","Medio","Alto","No aplica","No aplica"]
["Oza-Cesuras","Bajo","Bajo","Medio","Medio","No aplica","No aplica"]
["Paderne","Bajo","Bajo","Bajo","Medio","No aplica","No aplica"]
["Paderne de Allariz","Bajo","Medio","Bajo","Alto","No aplica","No aplica"]
["Padrenda","Bajo","Medio","Bajo","Alto","No aplica","No aplica"]
["Padrón","Medio","Medio","Bajo","Medio","No aplica","No aplica"]
["Palas de Rei","Bajo","Medio","Medio","Medio","No aplica","No aplica"]
["Pantón","Bajo","Medio","Bajo","Medio","No aplica","No aplica"]
["Parada de Sil","Medio","Medio","Bajo","Alto","No aplica","No aplica"]
["Paradela","Bajo","Medio","Bajo","Medio","No aplica","No aplica"]
["Pazos de Borbén","Medio","Medio","Bajo","Medio","No aplica","No aplica"]
["Pedrafita do Cebreiro","Medio","Medio","Bajo","Alto","No aplica","No aplica"]
["Petín","Bajo","Medio","Bajo","Alto","No aplica","No aplica"]
["Piñor","Bajo","Medio","Bajo","Medio","No aplica","No aplica"]
["Poio","Medio","Medio","Bajo","Medio","No aplica","No aplica"]
["Pol","Bajo","Medio","Medio","Medio","No aplica","No aplica"]
["Ponte Caldelas","Medio","Medio","Bajo","Alto","No aplica","No aplica"]
["Ponteareas","Medio","Alto","Bajo","Alto","No aplica","No aplica"]
["Ponteceso","Medio","Bajo","Alto","Alto","No aplica","No aplica"]
["Pontecesures","Medio","Medio","Bajo","Medio","No aplica","No aplica"]
["Pontedeume","Bajo","Bajo","Medio","Alto","No aplica","No aplica"]
["Pontedeva","Bajo","Medio","Bajo","Alto","No aplica","No aplica"]
["Pontevedra","Medio","Medio","Bajo","Medio","No aplica","No aplica"]
["Porqueira","Bajo","Medio","Bajo","Alto","No aplica","No aplica"]
["Portas","Medio","Medio","Bajo","Medio","No aplica","No aplica"]
["Porto do Son","Medio","Medio","Medio","Alto","No aplica","No aplica"]
["Portomarín","Bajo","Medio","Bajo","Medio","No aplica","No aplica"]
["Punxín","Bajo","Medio","Bajo","Medio","No aplica","No aplica"]
["Quintela de Leirado","Bajo","Medio","Bajo","Alto","No aplica","No aplica"]
["Quiroga","Medio","Medio","Bajo","Alto","No aplica","No aplica"]
["Rábade","Bajo","Medio","Bajo","Medio","No aplica","No aplica"]
["Rairiz de Veiga","Bajo","Medio","Bajo","Alto","No aplica","No aplica"]
["Ramirás","Bajo","Medio","Bajo","Alto","No aplica","No aplica"]
["Redondela","Medio","Medio","Bajo","Medio","No aplica","No aplica"]
["Rianxo","Medio","Medio","Medio","Alto","No aplica","No aplica"]
["Ribadavia","Bajo","Medio","Bajo","Alto","No aplica","No aplica"]
["Ribadeo","Bajo","Bajo","Medio","Alto","No aplica","No aplica"]
["Ribadumia","Medio","Medio","Bajo","Medio","No aplica","No aplica"]
["Ribas de Sil","Bajo","Medio","Bajo","Alto","No aplica","No aplica"]
["Ribeira","Medio","Medio","Medio","Alto","No aplica","No aplica"]
["Ribeira de Piquín","Bajo","Medio","Bajo","Medio","No aplica","No aplica"]
["Riós","Medio","Medio","Bajo","Alto","No aplica","No aplica"]
["Riotorto","Bajo","Medio","Bajo","Medio","No aplica","No aplica"]
["Rodeiro","Bajo","Medio","Bajo","Medio","No aplica","No aplica"]
["Rois","Medio","Medio","Bajo","Medio","No aplica","No aplica"]
["Rubiá","Bajo","Medio","Bajo","Alto","No aplica","No aplica"]
["Sada","Bajo","Bajo","Medio","Alto","No aplica","No aplica"]
["Salceda de Caselas","Medio","Alto","Bajo","Alto","No aplica","No aplica"]
["Salvaterra de Miño","Medio","Alto","Bajo","Alto","No aplica","No aplica"]
["Samos","Medio","Medio","Bajo","Alto","No aplica","No aplica"]
["San Amaro","Bajo","Medio","Bajo","Medio","No aplica","No aplica"]
["San Cibrao das Viñas","Bajo","Medio","Bajo","Alto","No aplica","No aplica"]
["San Cristovo de Cea","Bajo","Medio","Bajo","Medio","No aplica","No aplica"]
["San Sadurniño","Medio","Bajo","Medio","Alto","No aplica","No aplica"]
["San Xoán de Río","Bajo","Medio","Bajo","Alto","No aplica","No aplica"]
["Sandiás","Bajo","Medio","Bajo","Alto","No aplica","No aplica"]
["Santa Comba","Medio","Bajo","Medio","Alto","No aplica","No aplica"]
["Santiago de Compostela","Medio","Medio","Bajo","Medio","No aplica","No aplica"]
["Santiso","Bajo","Medio","Bajo","Medio","No aplica","No aplica"]
["Sanxenxo","Medio","Medio","Bajo","Medio","No aplica","No aplica"]
["Sarreaus","Bajo","Medio","Bajo","Alto","No aplica","No aplica"]
["Sarria","Bajo","Medio","Bajo","Medio","No aplica","No aplica"]
["Silleda","Medio","Medio","Bajo","Medio","No aplica","No aplica"]
["Sober","Bajo","Medio","Bajo","Alto","No aplica","No aplica"]
["Sobrado","Bajo","Medio","Medio","Medio","No aplica","No aplica"]
["Soutomaior","Medio","Medio","Bajo","Medio","No aplica","No aplica"]
["Taboada","Bajo","Medio","Bajo","Medio","No aplica","No aplica"]
["Taboadela","Bajo","Medio","Bajo","Alto","No aplica","No aplica"]
["Teo","Medio","Medio","Bajo","Medio","No aplica","No aplica"]
["Toén","Bajo","Medio","Bajo","Medio","No aplica","No aplica"]
["Tomiño","Medio","Medio","Medio","Alto","No aplica","No aplica"]
["Toques","Bajo","Medio","Medio","Medio","No aplica","No aplica"]
["Tordoia","Medio","Medio","Medio","Alto","No aplica","No aplica"]
["Touro","Medio","Medio","Bajo","Medio","No aplica","No aplica"]
["Trabada","Bajo","Bajo","Bajo","Alto","No aplica","No aplica"]
["Trasmiras","Bajo","Medio","Bajo","Alto","No aplica","No aplica"]
["Trazo","Medio","Medio","Bajo","Medio","No aplica","No aplica"]
["Triacastela","Bajo","Medio","Bajo","Medio","No aplica","No aplica"]
["Tui","Medio","Alto","Bajo","Alto","No aplica","No aplica"]
["Val do Dubra","Medio","Medio","Medio","Alto","No aplica","No aplica"]
["Valdoviño","Medio","Bajo","Alto","Alto","No aplica","No aplica"]
["Valga","Medio","Medio","Bajo","Medio","No aplica","No aplica"]
["Vedra","Medio","Medio","Bajo","Medio","No aplica","No aplica"]
["Verea","Bajo","Medio","Bajo","Alto","No aplica","No aplica"]
["Verín","Bajo","Medio","Bajo","Alto","No aplica","No aplica"]
["Viana do Bolo","Medio","Medio","Medio","Alto","No aplica","No aplica"]
["Vigo","Medio","Medio","Bajo","Medio","No aplica","No aplica"]
["Vila de Cruces","Medio","Medio","Bajo","Medio","No aplica","No aplica"]
["Vilaboa","Medio","Medio","Bajo","Medio","No aplica","No aplica"]
["Vilagarcía de Arousa","Medio","Medio","Medio","Alto","No aplica","No aplica"]
["Vilalba","Bajo","Medio","Medio","Medio","No aplica","No aplica"]
["Vilamarín","Medio","Medio","Bajo","Medio","No aplica","No aplica"]
["Vilamartín de Valdeorras","Medio","Medio","Bajo","Alto","No aplica","No aplica"]
["Vilanova de Arousa","Medio","Medio","Bajo","Medio","No aplica","No aplica"]
["Vilar de Barrio","Bajo","Medio","Bajo","Alto","No aplica","No aplica"]
["Vilar de Santos","Bajo","Medio","Bajo","Alto","No aplica","No aplica"]
["Vilardevós","Medio","Medio","Bajo","Alto","No aplica","No aplica"]
["Vilariño de Conso","Medio","Medio","Bajo","Alto","No aplica","No aplica"]
["Vilarmaior","Bajo","Bajo","Medio","Medio","No aplica","No aplica"]
["Vilasantar","Bajo","Medio","Medio","Medio","No aplica","No aplica"]
["Vimianzo","Medio","Bajo","Medio","Alto","No aplica","No aplica"]
["Viveiro","Bajo","Bajo","Medio","Alto","No aplica","No aplica"]
["Xermade","Bajo","Medio","Medio","Medio","No aplica","No aplica"]
["Xinzo de Limia","Bajo","Medio","Bajo","Alto","No aplica","No aplica"]
["Xove","Bajo","Bajo","Medio","Alto","No aplica","No aplica"]
["Xunqueira de Ambía","Bajo","Medio","Bajo","Alto","No aplica","No aplica"]
["Xunqueira de Espadanedo","Medio","Medio","Bajo","Alto","No aplica","No aplica"]
["Zas","Medio","Bajo","Medio","Alto","No aplica","No aplica"]

{"sheet":"Sensibilidad por tipo proyecto","index":2,"n_rows":17,"n_cols":7,"rows_kept":17,"hidden":true}
["Área - Categoría de proyecto","Cambio en el régimen de las precipitaciones","Subida de temperatura","Cambio en el régimen de vientos","Olas de calor","Inundaciones marítimas","Inundaciones fluviales"]
["Edificios - Mejora de edificios","BAJO","BAJO","BAJO","BAJO","MEDIO","MEDIO"]
["Edificios - Mejoras en el entorno de los edificios","BAJO","BAJO","BAJO","BAJO","MEDIO","MEDIO"]
["Edificios - Construcción de edificios","BAJO","BAJO","BAJO","BAJO","MEDIO","MEDIO"]
["Edificios - Ampliación de edificios","BAJO","BAJO","BAJO","BAJO","MEDIO","MEDIO"]
["Transporte - Construcción de terminales de transporte","BAJO","BAJO","BAJO","BAJO","MEDIO","MEDIO"]
["Transporte - Mejoras en las terminales de transporte","BAJO","BAJO","MEDIO","BAJO","MEDIO","MEDIO"]
["Transporte - Mejoras en las carreteras","BAJO","BAJO","BAJO","BAJO","MEDIO","MEDIO"]
["Transporte - Construcción de sendas para bicicletas y movilidad a pie","BAJO","MEDIO","MEDIO","MEDIO","MEDIO","MEDIO"]
["Residuos - Puntos de recogida de residuos","BAJO","MEDIO","BAJO","MEDIO","MEDIO","MEDIO"]
["Residuos - Instalaciones de clasificación y reciclaje","BAJO","MEDIO","BAJO","MEDIO","MEDIO","MEDIO"]
["Residuos - Plantas de valorización de residuos","MEDIO","BAJO","BAJO","BAJO","MEDIO","MEDIO"]
["Agua - Actuaciones sobre sistemas de saneamiento y depuración","BAJO","MEDIO","BAJO","MEDIO","MEDIO","MEDIO"]
["Agua - Actuaciones sobre Sistemas de abastecimiento","BAJO","BAJO","BAJO","BAJO","MEDIO","MEDIO"]
["Energía - Infraestructuras de almacenamiento energético","BAJO","BAJO","BAJO","BAJO","BAJO","BAJO"]
["Energía - Infraestructura para la generación de energía renovable","BAJO","BAJO","BAJO","BAJO","BAJO","BAJO"]
["Territorio - Actuaciones sobre el territorio","BAJO","BAJO","BAJO","BAJO","BAJO","BAJO"]

{"sheet":"Vulnerabilidad. Fase 1","index":3,"n_rows":33,"n_cols":7,"rows_kept":33,"merged":[[1,1,1,6],[8,1,8,6],[13,0,14,0],[13,2,13,4],[15,0,32,0],[15,1,20,1],[20,6,32,6],[21,1,26,1],[27,1,32,1]]}
["Valoración de la exposición (seleccione en la celda con fondo naranja el municipio del proyecto):"]
["Municipio","Amenaza climática"]
[null,"Cambio en el régimen de las precipitaciones","Subida de temperatura","Cambio en el régimen de vientos","Olas de calor","Inundaciones marítimas","Inundaciones fluviales"]
["Clima actual",{"$f":"VLOOKUP($A$3,E_ACTUAL,2,FALSE())","v":{"$error":"#N/A"}},{"$f":"VLOOKUP($A$3,E_ACTUAL,3,FALSE())","v":{"$error":"#N/A"}},{"$f":"VLOOKUP($A$3,E_ACTUAL,4,FALSE())","v":{"$error":"#N/A"}},{"$f":"VLOOKUP($A$3,E_ACTUAL,5,FALSE())","v":{"$error":"#N/A"}},{"$f":"VLOOKUP($A$3,E_ACTUAL,6,FALSE())","v":{"$error":"#N/A"}},{"$f":"VLOOKUP($A$3,E_ACTUAL,7,FALSE())","v":{"$error":"#N/A"}}]
["Clima futuro",{"$f":"VLOOKUP($A$3,E_FUTURA,2,FALSE())","v":{"$error":"#N/A"}},{"$f":"VLOOKUP($A$3,E_FUTURA,3,FALSE())","v":{"$error":"#N/A"}},{"$f":"VLOOKUP($A$3,E_FUTURA,4,FALSE())","v":{"$error":"#N/A"}},{"$f":"VLOOKUP($A$3,E_FUTURA,5,FALSE())","v":{"$error":"#N/A"}},{"$f":"VLOOKUP($A$3,E_FUTURA,6,FALSE())","v":{"$error":"#N/A"}},{"$f":"VLOOKUP($A$3,E_FUTURA,7,FALSE())","v":{"$error":"#N/A"}}]
["EXPOSICIÓN FINAL\n(Valor más alto)",{"$f":"IF(OR(B4=\"Alto\",B5=\"Alto\"),\"Alto\",IF(OR(B4=\"Medio\",B5=\"Medio\"),\"Medio\",IF(OR(B4=\"Bajo\",B5=\"Bajo\"),\"Bajo\",\"No aplica\")))","v":{"$error":"#N/A"}},{"$error":"#N/A"},{"$error":"#N/A"},{"$error":"#N/A"},{"$error":"#N/A"},{"$error":"#N/A"}]
[]
["Valoración de la sensibilidad (seleccione en la celda con fondo naranja el área y categoría del proyecto)"]
["Área - Categoría de proyecto","Amenaza climática"]
[null,"Cambio en el régimen de las precipitaciones","Subida de temperatura","Cambio en el régimen de vientos","Olas de calor","Inundaciones marítimas","Inundaciones fluviales"]
["SENSIBILIDAD FINAL\n(valor más alto)",{"$f":"VLOOKUP($A$10,SENSIBILIDAD,2,FALSE())","v":{"$error":"#N/A"}},{"$f":"VLOOKUP($A$10,SENSIBILIDAD,3,FALSE())","v":{"$error":"#N/A"}},{"$f":"VLOOKUP($A$10,SENSIBILIDAD,4,FALSE())","v":{"$error":"#N/A"}},{"$f":"VLOOKUP($A$10,SENSIBILIDAD,5,FALSE())","v":{"$error":"#N/A"}},{"$f":"VLOOKUP($A$10,SENSIBILIDAD,6,FALSE())","v":{"$error":"#N/A"}},{"$f":"VLOOKUP($A$10,SENSIBILIDAD,7,FALSE())","v":{"$error":"#N/A"}}]
[]
["Matriz de vulnerabilidad:"]
[null,null,"EXPOSICIÓN",{"$nulls":3},"LEYENDA"]
[null,null,"ALTO","MEDIO","BAJO",null,"Vulnerabilidad"]
["SENSIBILIDAD","ALTO",{"$f":"IF(AND($B$6=\"ALTO\",$B$11=\"ALTO\"),$B$3,\"\")","v":{"$error":"#N/A"}},{"$f":"IF(AND($B$6=\"MEDIO\",$B$11=\"ALTO\"),$B$3,\"\")","v":{"$error":"#N/A"}},{"$f":"IF(AND($B$6=\"BAJO\",$B$11=\"ALTO\"),$B$3,\"\")","v":{"$error":"#N/A"}},null,"ALTO"]
[null,null,{"$f":"IF(AND($C$6=\"ALTO\",$C11=\"ALTO\"),$C$3,\"\")","v":{"$error":"#N/A"}},{"$f":"IF(AND($C$6=\"MEDIO\",$C$11=\"ALTO\"),$C$3,\"\")","v":{"$error":"#N/A"}},{"$f":"IF(AND($C$6=\"BAJO\",$C$11=\"ALTO\"),$C$3,\"\")","v":{"$error":"#N/A"}},null,"MEDIO"]
[null,null,{"$f":"IF(AND($D$6=\"ALTO\",$D$11=\"ALTO\"),$D$3,\"\")","v":{"$error":"#N/A"}},{"$f":"IF(AND($D$6=\"MEDIO\",$D$11=\"ALTO\"),$D$3,\"\")","v":{"$error":"#N/A"}},{"$f":"IF(AND($D$6=\"BAJO\",$D$11=\"ALTO\"),$D$3,\"\")","v":{"$error":"#N/A"}},null,"BAJO"]
[null,null,{"$f":"IF(AND($E$6=\"ALTO\",$E$11=\"ALTO\"),$E$3,\"\")","v":{"$error":"#N/A"}},{"$f":"IF(AND($E$6=\"MEDIO\",$E$11=\"ALTO\"),$E$3,\"\")","v":{"$error":"#N/A"}},{"$f":"IF(AND($E$6=\"BAJO\",$E$11=\"ALTO\"),$E$3,\"\")","v":{"$error":"#N/A"}}]
[null,null,{"$f":"IF(AND($F$6=\"ALTO\",$F$11=\"ALTO\"),$F$3,\"\")","v":{"$error":"#N/A"}},{"$f":"IF(AND($F$6=\"MEDIO\",$F$11=\"ALTO\"),$F$3,\"\")","v":{"$error":"#N/A"}},{"$f":"IF(AND($F$6=\"BAJO\",$F$11=\"ALTO\"),$F$3,\"\")","v":{"$error":"#N/A"}}]
[null,null,{"$f":"IF(AND($G$6=\"ALTO\",$G$11=\"ALTO\"),$G$3,\"\")","v":{"$error":"#N/A"}},{"$f":"IF(AND($G$6=\"MEDIO\",$G$11=\"ALTO\"),$G$3,\"\")","v":{"$error":"#N/A"}},{"$f":"IF(AND($G$6=\"BAJO\",$G$11=\"ALTO\"),$G$3,\"\")","v":{"$error":"#N/A"}},null,{"$f":"IF(SUM(COUNTBLANK(C16:C33),COUNTBLANK(D16:D27),COUNTBLANK(E16:E21))=36,\"No existen vulnerabilidades altas a las amenazas, por lo que concluye el análisis del pilar de adaptación sin necesidad de desarrollar la fase 2 de análisis detallado\",\"Es necesario desarrollar la fase 2 de análisis detallado para las amenazas climáticas con grado de vulnerabilidad MEDIO o ALTO (las que aparecen en las celdas con fondo color AMARILLO o ROSA en la matriz de vulnerabilidad)\")","v":"Es necesario desarrollar la fase 2 de análisis detallado para las amenazas climáticas con grado de vulnerabilidad MEDIO o ALTO (las que aparecen en las celdas con fondo color AMARILLO o ROSA en la matriz de vulnerabilidad)"}]
[null,"MEDIO",{"$f":"IF(AND($B$6=\"ALTO\",$B$11=\"MEDIO\"),$B$3,\"\")","v":{"$error":"#N/A"}},{"$f":"IF(AND($B$6=\"MEDIO\",$B$11=\"MEDIO\"),$B$3,\"\")","v":{"$error":"#N/A"}},{"$f":"IF(AND($B$6=\"BAJO\",$B$11=\"MEDIO\"),$B$3,\"\")","v":{"$error":"#N/A"}}]
[null,null,{"$f":"IF(AND($C$6=\"ALTO\",$C18=\"MEDIO\"),$C$3,\"\")","v":{"$error":"#N/A"}},{"$f":"IF(AND($C$6=\"MEDIO\",$C$11=\"MEDIO\"),$C$3,\"\")","v":{"$error":"#N/A"}},{"$f":"IF(AND($C$6=\"BAJO\",$C$11=\"MEDIO\"),$C$3,\"\")","v":{"$error":"#N/A"}}]
[null,null,{"$f":"IF(AND($D$6=\"ALTO\",$D$11=\"MEDIO\"),$D$3,\"\")","v":{"$error":"#N/A"}},{"$f":"IF(AND($D$6=\"MEDIO\",$D$11=\"MEDIO\"),$D$3,\"\")","v":{"$error":"#N/A"}},{"$f":"IF(AND($D$6=\"BAJO\",$D$11=\"MEDIO\"),$D$3,\"\")","v":{"$error":"#N/A"}}]
[null,null,{"$f":"IF(AND($E$6=\"ALTO\",$E$11=\"MEDIO\"),$E$3,\"\")","v":{"$error":"#N/A"}},{"$f":"IF(AND($E$6=\"MEDIO\",$E$11=\"MEDIO\"),$E$3,\"\")","v":{"$error":"#N/A"}},{"$f":"IF(AND($E$6=\"BAJO\",$E$11=\"MEDIO\"),$E$3,\"\")","v":{"$error":"#N/A"}}]
[null,null,{"$f":"IF(AND($F$6=\"ALTO\",$F$11=\"MEDIO\"),$F$3,\"\")","v":{"$error":"#N/A"}},{"$f":"IF(AND($F$6=\"MEDIO\",$F$11=\"MEDIO\"),$F$3,\"\")","v":{"$error":"#N/A"}},{"$f":"IF(AND($F$6=\"BAJO\",$F$11=\"MEDIO\"),$F$3,\"\")","v":{"$error":"#N/A"}}]
[null,null,{"$f":"IF(AND($G$6=\"ALTO\",$G$11=\"MEDIO\"),$G$3,\"\")","v":{"$error":"#N/A"}},{"$f":"IF(AND($G$6=\"MEDIO\",$G$11=\"MEDIO\"),$G$3,\"\")","v":{"$error":"#N/A"}},{"$f":"IF(AND($G$6=\"BAJO\",$G$11=\"MEDIO\"),$G$3,\"\")","v":{"$error":"#N/A"}}]
[null,"BAJO",{"$f":"IF(AND($B$6=\"ALTO\",$B$11=\"BAJO\"),$B$3,\"\")","v":{"$error":"#N/A"}},{"$f":"IF(AND($B$6=\"MEDIO\",$B$11=\"BAJO\"),$B$3,\"\")","v":{"$error":"#N/A"}},{"$f":"IF(AND($B$6=\"BAJO\",$B$11=\"BAJO\"),$B$3,\"\")","v":{"$error":"#N/A"}}]
[null,null,{"$f":"IF(AND($C$6=\"ALTO\",$C24=\"BAJO\"),$C$3,\"\")","v":{"$error":"#N/A"}},{"$f":"IF(AND($C$6=\"MEDIO\",$C$11=\"BAJO\"),$C$3,\"\")","v":{"$error":"#N/A"}},{"$f":"IF(AND($C$6=\"BAJO\",$C$11=\"BAJO\"),$C$3,\"\")","v":{"$error":"#N/A"}}]
[null,null,{"$f":"IF(AND($D$6=\"ALTO\",$D$11=\"BAJO\"),$D$3,\"\")","v":{"$error":"#N/A"}},{"$f":"IF(AND($D$6=\"MEDIO\",$D$11=\"BAJO\"),$D$3,\"\")","v":{"$error":"#N/A"}},{"$f":"IF(AND($D$6=\"BAJO\",$D$11=\"BAJO\"),$D$3,\"\")","v":{"$error":"#N/A"}}]
[null,null,{"$f":"IF(AND($E$6=\"ALTO\",$E$11=\"BAJO\"),$E$3,\"\")","v":{"$error":"#N/A"}},{"$f":"IF(AND($E$6=\"MEDIO\",$E$11=\"BAJO\"),$E$3,\"\")","v":{"$error":"#N/A"}},{"$f":"IF(AND($E$6=\"BAJO\",$E$11=\"BAJO\"),$E$3,\"\")","v":{"$error":"#N/A"}}]
[null,null,{"$f":"IF(AND($F$6=\"ALTO\",$F$11=\"BAJO\"),$F$3,\"\")","v":{"$error":"#N/A"}},{"$f":"IF(AND($F$6=\"MEDIO\",$F$11=\"BAJO\"),$F$3,\"\")","v":{"$error":"#N/A"}},{"$f":"IF(AND($F$6=\"BAJO\",$F$11=\"BAJO\"),$F$3,\"\")","v":{"$error":"#N/A"}}]
[null,null,{"$f":"IF(AND($G$6=\"ALTO\",$G$11=\"BAJO\"),$G$3,\"\")","v":{"$error":"#N/A"}},{"$f":"IF(AND($G$6=\"MEDIO\",$G$11=\"BAJO\"),$G$3,\"\")","v":{"$error":"#N/A"}},{"$f":"IF(AND($G$6=\"BAJO\",$G$11=\"BAJO\"),$G$3,\"\")","v":{"$error":"#N/A"}}]

{"sheet":"Análisis de impacto","index":4,"n_rows":17,"n_cols":7,"rows_kept":17,"hidden":true}
["Área - Categoría de proyecto","Cambio en el régimen de las precipitaciones","Subida de temperatura","Cambio en el régimen de vientos","Olas de calor","Inundaciones marítimas","Inundaciones fluviales"]
["Edificios - Mejora de edificios","Leve","Leve","Leve","Leve","Leve","Leve"]
["Edificios - Mejoras en el entorno de los edificios","Moderado","Moderado","Moderado","Moderado","Moderado","Moderado"]
["Edificios - Construcción de edificios","Moderado","Moderado","Moderado","Moderado","Moderado","Moderado"]
["Edificios - Ampliación de edificios","Moderado","Moderado","Moderado","Moderado","Moderado","Moderado"]
["Transporte - Construcción de terminales de transporte","Grave","Moderado","Moderado","Moderado","Grave","Grave"]
["Transporte - Mejoras en las terminales de transporte","Moderado","Leve","Leve","Leve","Moderado","Moderado"]
["Transporte - Mejoras en las carreteras","Moderado","Leve","Leve","Leve","Moderado","Moderado"]
["Transporte - Construcción de sendas para bicicletas y movilidad a pie","Moderado","Grave","Moderado","Grave","Moderado","Moderado"]
["Residuos - Puntos de recogida de residuos","Moderado","Moderado","Moderado","Moderado","Moderado","Moderado"]
["Residuos - Instalaciones de clasificación y reciclaje","Grave","Moderado","Leve","Moderado","Grave","Grave"]
["Residuos - Plantas de valorización de residuos","Grave","Moderado","Leve","Moderado","Grave","Grave"]
["Agua - Actuaciones sobre sistemas de saneamiento y depuración","Grave","Moderado","Moderado","Leve","Grave","Grave"]
["Agua - Actuaciones sobre Sistemas de abastecimiento","Grave","Moderado","Leve","Leve","Grave","Grave"]
["Energía - Infraestructuras de almacenamiento energético","Moderado","Moderado","Leve","Moderado","Moderado","Moderado"]
["Energía - Infraestructura para la generación de energía renovable","Moderado","Moderado","Moderado","Moderado","Moderado","Moderado"]
["Territorio - Actuaciones sobre el territorio","Leve","Moderado","Moderado","Moderado","Leve","Leve"]

{"sheet":"Probab. Precipitaciones","index":5,"n_rows":6,"n_cols":3,"rows_kept":6,"hidden":true}
["Probabilidad de ocurrencia para los cambios en el régimen de precipitaciones:"]
["Provincia","Análisis de la probabilidad","Probabilidad"]
["A Coruña","En las dos variables analizadas (fenómenos adversos por precipitación acumulada en 1 hora y en 12 horas) solamente se ha registrado un fenómeno en 2018.\nLa variación de la exposición a la precipitación en el horizonte cercano como en el futuro es pequeña.","Improbable"]
["Pontevedra","Es la provincia con mayor número de días registrado y, aunque, de acuerdo a los mapas de exposición mostrados en el apartado 4.2 no hay ninguna variación en el horizonte cercano como en el futuro en materia de precipitación, se considera que es probable que tengan lugar fenómenos de precipitaciones con riesgo para la población o las infraestructuras.","Casi seguro"]
["Lugo","En las dos variables analizadas (fenómenos adversos por precipitación acumulada en 1 hora y en 12 horas) solamente se ha registrado un fenómeno en 2018.\nAdemás la variación de la exposición a la precipitación en el horizonte cercano como en el futuro es pequeña.","Improbable"]
["Ourense","Se han recogido 3 fenómenos adversos en la variable relativa a la precipitación en 1 hora.\nLa variación de la exposición a la precipitación en el horizonte cercano como en el futuro es pequeña.","Probable"]

{"sheet":"Fase 2. Precipitaciones","index":6,"n_rows":20,"n_cols":9,"rows_kept":20,"merged":[[0,0,0,8],[11,0,12,0],[11,2,11,6],[13,0,17,0],[19,0,19,6]]}
["Análisis de la probabilidad de ocurrencia  de amenaza climática con vulnerabilidad ALTA o MEDIA en la fase I (No analizar si la vulnerabilidad fue BAJA en la fase I)\nSeleccione en la celda con fondo naranja la provincia:"]
["PROVINCIA","Amenaza climática"]
[null,"Cambio en el régimen de las precipitaciones"]
["PROBABILIDAD",{"$f":"VLOOKUP($A$3,PRECIPITACIONES,3,FALSE())","v":{"$error":"#N/A"}}]
[]
["Análisis de impacto"]
["Área - Categoría de proyecto","Amenaza climática"]
[{"$f":"'Vulnerabilidad. Fase 1'!A10","v":0},{"$f":"B3","v":"Cambio en el régimen de las precipitaciones"}]
["IMPACTO GENERAL",{"$f":"VLOOKUP($A$8,IMPACTO,2,FALSE())","v":{"$error":"#N/A"}}]
[]
["Matriz de vulnerabilidad:"]
[null,null,"IMPACTO GENERAL",{"$nulls":5},"LEYENDA"]
[null,null,"Insignificante","Leve","Moderado","Grave","Catastrófico",null,"NIVEL DE RIESGO"]
["PROBABILIDAD","Raro",{"$f":"IF(AND($B$4=$B14,$B$9=C$13),$B$3,\"\")","v":{"$error":"#N/A"}},{"$error":"#N/A"},{"$error":"#N/A"},{"$error":"#N/A"},{"$error":"#N/A"},null,"BAJO"]
[null,"Improbable",{"$error":"#N/A"},{"$error":"#N/A"},{"$error":"#N/A"},{"$error":"#N/A"},{"$error":"#N/A"},null,"MEDIO"]
[null,"Moderado",{"$error":"#N/A"},{"$error":"#N/A"},{"$error":"#N/A"},{"$error":"#N/A"},{"$error":"#N/A"},null,"ALTO"]
[null,"Probable",{"$error":"#N/A"},{"$error":"#N/A"},{"$error":"#N/A"},{"$error":"#N/A"},{"$error":"#N/A"},null,"EXTREMO"]
[null,"Casi seguro",{"$error":"#N/A"},{"$error":"#N/A"},{"$error":"#N/A"},{"$error":"#N/A"},{"$error":"#N/A"}]
[]
[{"$f":"IF(AND(C14=\"\",D14=\"\",C15=\"\",D15=\"\",C16=\"\"),IF(AND(E14=\"\",E15=\"\",D16=\"\",C17=\"\"),\"El nivel de riesgo para esta amenaza climática es ALTO o EXTREMO, por lo que deben proponerse medidas de adaptación para gestionar este riesgo y reducirlo a un nivel aceptable\",\"Esta amenaza tiene un riesgo MEDIO, por lo que deben proponerse, al menos, medidas de seguimiento de los niveles de riesgo\"),\"El nivel de riesgo para esta amenaza climática es BAJO, por lo que no es obligatorio proponer medidas de adaptación ni medidas de seguimiento de los niveles de riesgo\")","v":{"$error":"#N/A"}}]

{"sheet":"Probab. Temperatura","index":7,"n_rows":6,"n_cols":3,"rows_kept":6,"hidden":true}
["Probabilidad de ocurrencia para la subida de temperatura:"]
["Provincia","Análisis de la probabilidad","Probabilidad"]
["A Coruña","En las dos variables analizadas (fenómenos adversos por precipitación acumulada en 1 hora y en 12 horas) solamente se ha registrado un fenómeno en 2018.\nLa variación de la exposición a la precipitación en el horizonte cercano como en el futuro es pequeña.","Moderado"]
["Pontevedra","En el periodo de estudio, las estadísticas de la AEMET han recogido únicamente 8 días de fenómenos adversos por temperatura extrema en el año 2022, de los cuales 13 fueron en el último año (2022).\nLos mapas de exposición sí que muestran un incremento notable en el número de municipios cuyo percentil 99 de la temperatura máxima diaria pasará de menos de 34ºC a más de 34ºC e incluso hay algunos municipios a más de 40ºC.","Probable"]
["Lugo","Las estadísticas de la AEMET no han recogido ningún fenómeno adverso para el periodo 2018-2023.\nLos mapas de exposición sí que muestran un incremento notable en el número de municipios cuyo percentil 99 de la temperatura máxima diaria pasará de menos de 34ºC a más de 34ºC. Es por ello que aunque no se haya producido ningún fenómeno hasta ahora, en el futuro sí podría ocurrir aunque es poco probable.","Improbable"]
["Ourense","En el periodo de estudio, las estadísticas de la AEMET han recogido 18 días de fenómenos adversos por temperatura extrema de los cuales 13 fueron en el último año.\nLos mapas de exposición muestran que tanto en el horizonte cercano como en el futuro las proyecciones de la AEMET muestran que todos los municipios de la provincia estarán expuestos a un percentil 99 de la temperatura máxima diario comprendido entre 34ºC y 40ºC. Es decir no habrá variación en el horizonte futuro.","Casi seguro"]

{"sheet":"Fase 2. Temperatura","index":8,"n_rows":20,"n_cols":9,"rows_kept":20,"merged":[[0,0,0,8],[11,0,12,0],[11,2,11,6],[13,0,17,0],[19,0,19,6]]}
["Análisis de la probabilidad de ocurrencia  de amenaza climática con vulnerabilidad ALTA o MEDIA en la fase I (No analizar si la vulnerabilidad fue BAJA en la fase I)\nSeleccione en la celda con fondo naranja la provincia:"]
["PROVINCIA","Amenaza climática"]
[null,"Subida de temperatura"]
["PROBABILIDAD",{"$f":"VLOOKUP($A$3,TEMPERATURA,3,FALSE())","v":{"$error":"#N/A"}}]
[]
["Análisis de impacto"]
["Área - Categoría de proyecto","Amenaza climática"]
[{"$f":"'Vulnerabilidad. Fase 1'!A10","v":0},{"$f":"B3","v":"Subida de temperatura"}]
["IMPACTO GENERAL",{"$f":"VLOOKUP($A$8,IMPACTO,3,FALSE())","v":{"$error":"#N/A"}}]
[]
["Matriz de vulnerabilidad:"]
[null,null,"IMPACTO GENERAL",{"$nulls":5},"LEYENDA"]
[null,null,"Insignificante","Leve","Moderado","Grave","Catastrófico",null,"NIVEL DE RIESGO"]
["PROBABILIDAD","Raro",{"$f":"IF(AND($B$4=$B14,$B$9=C$13),$B$3,\"\")","v":{"$error":"#N/A"}},{"$error":"#N/A"},{"$error":"#N/A"},{"$error":"#N/A"},{"$error":"#N/A"},null,"BAJO"]
[null,"Improbable",{"$error":"#N/A"},{"$error":"#N/A"},{"$error":"#N/A"},{"$error":"#N/A"},{"$error":"#N/A"},null,"MEDIO"]
[null,"Moderado",{"$error":"#N/A"},{"$error":"#N/A"},{"$error":"#N/A"},{"$error":"#N/A"},{"$error":"#N/A"},null,"ALTO"]
[null,"Probable",{"$error":"#N/A"},{"$error":"#N/A"},{"$error":"#N/A"},{"$error":"#N/A"},{"$error":"#N/A"},null,"EXTREMO"]
[null,"Casi seguro",{"$error":"#N/A"},{"$error":"#N/A"},{"$error":"#N/A"},{"$error":"#N/A"},{"$error":"#N/A"}]
[]
[{"$f":"IF(AND(C14=\"\",D14=\"\",C15=\"\",D15=\"\",C16=\"\"),IF(AND(E14=\"\",E15=\"\",D16=\"\",C17=\"\"),\"El nivel de riesgo para esta amenaza climática es ALTO o EXTREMO, por lo que deben proponerse medidas de adaptación para gestionar este riesgo y reducirlo a un nivel aceptable\",\"Esta amenaza tiene un riesgo MEDIO, por lo que deben proponerse, al menos, medidas de seguimiento de los niveles de riesgo\"),\"El nivel de riesgo para esta amenaza climática es BAJO, por lo que no es obligatorio proponer medidas de adaptación ni medidas de seguimiento de los niveles de riesgo\")","v":{"$error":"#N/A"}}]

{"sheet":"Probab. Vientos","index":9,"n_rows":6,"n_cols":3,"rows_kept":6,"hidden":true}
["Probabilidad de ocurrencia para el cambio en el régimen de vientos:"]
["Provincia","Análisis de la probabilidad","Probabilidad"]
["A Coruña","Las estadísticas de la AEMET han recogido 4 fenómenos adversos para el periodo 2018-2023.\nLos mapas de exposición sobre velocidad máxima del viento a 10 m de altitud muestran una variación pequeña entre el horizonte temporal cercano y futuro, pero existen varios municipios de la costa en donde su nivel de exposición es alto por lo que se incrementa la probabilidad. ","Probable"]
["Pontevedra","Las estadísticas de la AEMET únicamente han recogido 2 fenómenos adversos en relación al viento en los años 2020 y 2021 para el periodo de estudio\nLos mapas de exposición sobre velocidad máxima del viento a 10 m de altitud no muestran variaciones entre el horizonte temporal cercano y futuro.","Moderado"]
["Lugo","Las estadísticas de la AEMET no han recogido ningún fenómeno adverso para el periodo 2018-2023.\nLos mapas de exposición sobre velocidad máxima del viento a 10 m de altitud no muestran variaciones entre el horizonte temporal cercano y futuro.","Raro"]
["Ourense","Las estadísticas de la AEMET únicamente han recogido 2 fenómenos adversos en relación al viento en 2018 para el periodo de estudio.\nLos mapas de exposición sobre velocidad máxima del viento a 10 m de altitud no muestran variaciones entre el horizonte temporal cercano y futuro.","Moderado"]

{"sheet":"Fase 2. Vientos","index":10,"n_rows":20,"n_cols":9,"rows_kept":20,"merged":[[0,0,0,8],[11,0,12,0],[11,2,11,6],[13,0,17,0],[19,0,19,6]]}
["Análisis de la probabilidad de ocurrencia  de amenaza climática con vulnerabilidad ALTA o MEDIA en la fase I (No analizar si la vulnerabilidad fue BAJA en la fase I)\nSeleccione en la celda con fondo naranja la provincia:"]
["PROVINCIA","Amenaza climática"]
[null,"Cambio en el régimen de vientos"]
["PROBABILIDAD",{"$f":"VLOOKUP($A$3,VIENTOS,3,FALSE())","v":{"$error":"#N/A"}}]
[]
["Análisis de impacto"]
["Área - Categoría de proyecto","Amenaza climática"]
[{"$f":"'Vulnerabilidad. Fase 1'!A10","v":0},{"$f":"B3","v":"Cambio en el régimen de vientos"}]
["IMPACTO GENERAL",{"$f":"VLOOKUP($A$8,IMPACTO,4,FALSE())","v":{"$error":"#N/A"}}]
[]
["Matriz de vulnerabilidad:"]
[null,null,"IMPACTO GENERAL",{"$nulls":5},"LEYENDA"]
[null,null,"Insignificante","Leve","Moderado","Grave","Catastrófico",null,"NIVEL DE RIESGO"]
["PROBABILIDAD","Raro",{"$f":"IF(AND($B$4=$B14,$B$9=C$13),$B$3,\"\")","v":{"$error":"#N/A"}},{"$error":"#N/A"},{"$error":"#N/A"},{"$error":"#N/A"},{"$error":"#N/A"},null,"BAJO"]
[null,"Improbable",{"$error":"#N/A"},{"$error":"#N/A"},{"$error":"#N/A"},{"$error":"#N/A"},{"$error":"#N/A"},null,"MEDIO"]
[null,"Moderado",{"$error":"#N/A"},{"$error":"#N/A"},{"$error":"#N/A"},{"$error":"#N/A"},{"$error":"#N/A"},null,"ALTO"]
[null,"Probable",{"$error":"#N/A"},{"$error":"#N/A"},{"$error":"#N/A"},{"$error":"#N/A"},{"$error":"#N/A"},null,"EXTREMO"]
[null,"Casi seguro",{"$error":"#N/A"},{"$error":"#N/A"},{"$error":"#N/A"},{"$error":"#N/A"},{"$error":"#N/A"}]
[]
[{"$f":"IF(AND(C14=\"\",D14=\"\",C15=\"\",D15=\"\",C16=\"\"),IF(AND(E14=\"\",E15=\"\",D16=\"\",C17=\"\"),\"El nivel de riesgo para esta amenaza climática es ALTO o EXTREMO, por lo que deben proponerse medidas de adaptación para gestionar este riesgo y reducirlo a un nivel aceptable\",\"Esta amenaza tiene un riesgo MEDIO, por lo que deben proponerse, al menos, medidas de seguimiento de los niveles de riesgo\"),\"El nivel de riesgo para esta amenaza climática es BAJO, por lo que no es obligatorio proponer medidas de adaptación ni medidas de seguimiento de los niveles de riesgo\")","v":{"$error":"#N/A"}}]

{"sheet":"Probab. Olas de Calor","index":11,"n_rows":6,"n_cols":3,"rows_kept":6,"hidden":true}
["Probabilidad de ocurrencia de olas de calor:"]
["Provincia","Análisis de la probabilidad","Probabilidad"]
["A Coruña","No se ha activado en este provincial el nivel de alerta alto o medio.","Improbable"]
["Pontevedra","Es la provincia con mayor número de veces que se ha activado las alertas, principalmente las de nivel medio (23 veces de un total de 24).\nLa variación de la exposición a las olas de calor entre los horizontes considerados es elevada.","Casi seguro"]
["Lugo","En 2022 se activó 4 veces la alerta por riesgo medio de olas de calor.","Moderado"]
["Ourense","En total se ha activado 19 veces la alerta por riesgo de ola de calor: 4 veces por un riesgo alto y 15 veces por riesgo medio. La mayor parte de ellas (11 veces) fueron en 2022.\nLa variación de la exposición a las olas de calor entre los horizontes considerados es elevada.","Casi seguro"]

{"sheet":"Fase 2. Olas calor","index":12,"n_rows":20,"n_cols":9,"rows_kept":20,"merged":[[0,0,0,8],[11,0,12,0],[11,2,11,6],[13,0,17,0],[19,0,19,6]]}
["Análisis de la probabilidad de ocurrencia  de amenaza climática con vulnerabilidad ALTA o MEDIA en la fase I (No analizar si la vulnerabilidad fue BAJA en la fase I)\nSeleccione en la celda con fondo naranja la provincia:"]
["PROVINCIA","Amenaza climática"]
[null,"Olas de calor"]
["PROBABILIDAD",{"$f":"VLOOKUP($A$3,OLAS,3,FALSE())","v":{"$error":"#N/A"}}]
[]
["Análisis de impacto"]
["Área - Categoría de proyecto","Amenaza climática"]
[{"$f":"'Vulnerabilidad. Fase 1'!A10","v":0},{"$f":"B3","v":"Olas de calor"}]
["IMPACTO GENERAL",{"$f":"VLOOKUP($A$8,IMPACTO,5,FALSE())","v":{"$error":"#N/A"}}]
[]
["Matriz de vulnerabilidad:"]
[null,null,"IMPACTO GENERAL",{"$nulls":5},"LEYENDA"]
[null,null,"Insignificante","Leve","Moderado","Grave","Catastrófico",null,"NIVEL DE RIESGO"]
["PROBABILIDAD","Raro",{"$f":"IF(AND($B$4=$B14,$B$9=C$13),$B$3,\"\")","v":{"$error":"#N/A"}},{"$error":"#N/A"},{"$error":"#N/A"},{"$error":"#N/A"},{"$error":"#N/A"},null,"BAJO"]
[null,"Improbable",{"$error":"#N/A"},{"$error":"#N/A"},{"$error":"#N/A"},{"$error":"#N/A"},{"$error":"#N/A"},null,"MEDIO"]
[null,"Moderado",{"$error":"#N/A"},{"$error":"#N/A"},{"$error":"#N/A"},{"$error":"#N/A"},{"$error":"#N/A"},null,"ALTO"]
[null,"Probable",{"$error":"#N/A"},{"$error":"#N/A"},{"$error":"#N/A"},{"$error":"#N/A"},{"$error":"#N/A"},null,"EXTREMO"]
[null,"Casi seguro",{"$error":"#N/A"},{"$error":"#N/A"},{"$error":"#N/A"},{"$error":"#N/A"},{"$error":"#N/A"}]
[]
[{"$f":"IF(AND(C14=\"\",D14=\"\",C15=\"\",D15=\"\",C16=\"\"),IF(AND(E14=\"\",E15=\"\",D16=\"\",C17=\"\"),\"El nivel de riesgo para esta amenaza climática es ALTO o EXTREMO, por lo que deben proponerse medidas de adaptación para gestionar este riesgo y reducirlo a un nivel aceptable\",\"Esta amenaza tiene un riesgo MEDIO, por lo que deben proponerse, al menos, medidas de seguimiento de los niveles de riesgo\"),\"El nivel de riesgo para esta amenaza climática es BAJO, por lo que no es obligatorio proponer medidas de adaptación ni medidas de seguimiento de los niveles de riesgo\")","v":{"$error":"#N/A"}}]

{"sheet":"Probab. Inund. Mar","index":13,"n_rows":315,"n_cols":3,"rows_kept":315,"hidden":true}
["Probabilidad de ocurrencia de inundaciones martítimas:"]
["Municipio","Peligrosidad de acuerdo al Plan ","Probabilidad"]
["A Arnoia","Baja","Raro"]
["A Baña","Baja","Raro"]
["A Bola","Baja","Raro"]
["A Cañiza","Baja","Raro"]
["A Capela","Baja","Raro"]
["A Coruña","Alto","Probable"]
["A Estrada","Baja","Raro"]
["A Fonsagrada","Baja","Raro"]
["A Guarda","Medio","Moderado"]
["A Gudiña","Baja","Raro"]
["A Illa de Arousa","Baja","Raro"]
["A Lama","Baja","Raro"]
["A Laracha","Baja","Raro"]
["A Merca","Baja","Raro"]
["A Mezquita","Baja","Raro"]
["A Pastoriza","Baja","Raro"]
["A Peroxa","Baja","Raro"]
["A Pobra de Trives","Baja","Raro"]
["A Pobra do Brollón","Baja","Raro"]
["A Pobra do Caramiñal","Baja","Raro"]
["A Pontenova","Baja","Raro"]
["A Rúa","Baja","Raro"]
["A Teixeira","Baja","Raro"]
["A Veiga","Baja","Raro"]
["Abadín","Baja","Raro"]
["Abegondo","Baja","Raro"]
["Agolada","Baja","Raro"]
["Alfoz","Baja","Raro"]
["Allariz","Baja","Raro"]
["Ames","Baja","Raro"]
["Amoeiro","Baja","Raro"]
["Antas de Ulla","Baja","Raro"]
["Aranga","Baja","Raro"]
["Arbo","Baja","Raro"]
["Ares","Baja","Raro"]
["Arteixo","Medio","Moderado"]
["Arzúa","Baja","Raro"]
["As Neves","Baja","Raro"]
["As Nogais","Baja","Raro"]
["As Pontes de García Rodríguez","Baja","Raro"]
["As Somozas","Baja","Raro"]
["Avión","Baja","Raro"]
["Baiona","Alto","Probable"]
["Baleira","Baja","Raro"]
["Baltar","Baja","Raro"]
["Bande","Baja","Raro"]
["Baños de Molgas","Baja","Raro"]
["Baralla","Baja","Raro"]
["Barbadás","Baja","Raro"]
["Barreiros","Medio","Moderado"]
["Barro","Baja","Raro"]
["Beade","Baja","Raro"]
["Beariz","Baja","Raro"]
["Becerreá","Baja","Raro"]
["Begonte","Baja","Raro"]
["Bergondo","Baja","Raro"]
["Betanzos","Medio","Moderado"]
["Boborás","Baja","Raro"]
["Boimorto","Baja","Raro"]
["Boiro","Baja","Raro"]
["Boqueixón","Baja","Raro"]
["Bóveda","Baja","Raro"]
["Brión","Baja","Raro"]
["Bueu","Medio","Moderado"]
["Burela","Medio","Moderado"]
["Cabana de Bergantiños","Baja","Raro"]
["Cabanas","Baja","Raro"]
["Caldas de Reis","Baja","Raro"]
["Calvos de Randín","Baja","Raro"]
["Camariñas","Muy alto ","Casi seguro"]
["Cambados","Medio","Moderado"]
["Cambre","Medio","Moderado"]
["Campo Lameiro","Baja","Raro"]
["Cangas","Baja","Raro"]
["Carballeda de Avia","Baja","Raro"]
["Carballeda de Valdeorras","Baja","Raro"]
["Carballedo","Baja","Raro"]
["Carballo","Medio","Moderado"]
["Cariño","Medio","Moderado"]
["Carnota","Medio","Moderado"]
["Carral","Baja","Raro"]
["Cartelle","Baja","Raro"]
["Castrelo de Miño","Baja","Raro"]
["Castrelo do Val","Baja","Raro"]
["Castro Caldelas","Baja","Raro"]
["Castro de Rei","Baja","Raro"]
["Castroverde","Baja","Raro"]
["Catoira","Medio","Moderado"]
["Cedeira","Medio","Moderado"]
["Cee","Medio","Moderado"]
["Celanova","Baja","Raro"]
["Cenlle","Baja","Raro"]
["Cerceda","Baja","Raro"]
["Cerdedo-Cotobade","Baja","Raro"]
["Cerdido","Baja","Raro"]
["Cervantes","Baja","Raro"]
["Cervo","Alto","Probable"]
["Chandrexa de Queixa","Baja","Raro"]
["Chantada","Baja","Raro"]
["Coirós","Baja","Raro"]
["Coles","Baja","Raro"]
["Corcubión","Baja","Raro"]
["Coristanco","Baja","Raro"]
["Cortegada","Baja","Raro"]
["Cospeito","Baja","Raro"]
["Covelo","Baja","Raro"]
["Crecente","Baja","Raro"]
["Cualedro","Baja","Raro"]
["Culleredo","Medio","Moderado"]
["Cuntis","Baja","Raro"]
["Curtis","Baja","Raro"]
["Dodro","Medio","Moderado"]
["Dozón","Baja","Raro"]
["Dumbría","Medio","Moderado"]
["Entrimo","Baja","Raro"]
["Esgos","Baja","Raro"]
["Fene","Baja","Raro"]
["Ferrol","Medio","Moderado"]
["Fisterra","Medio","Moderado"]
["Folgoso do Courel","Baja","Raro"]
["Forcarei","Baja","Raro"]
["Fornelos de Montes","Baja","Raro"]
["Foz","Baja","Raro"]
["Frades","Baja","Raro"]
["Friol","Baja","Raro"]
["Gomesende","Baja","Raro"]
["Gondomar","Alto","Probable"]
["Guitiriz","Baja","Raro"]
["Guntín","Baja","Raro"]
["Irixoa","Baja","Raro"]
["Lalín","Baja","Raro"]
["Láncara","Baja","Raro"]
["Larouco","Baja","Raro"]
["Laxe","Alto","Probable"]
["Laza","Baja","Raro"]
["Leiro","Baja","Raro"]
["Lobeira","Baja","Raro"]
["Lobios","Baja","Raro"]
["Lourenzá","Baja","Raro"]
["Lousame","Baja","Raro"]
["Lugo","Baja","Raro"]
["Maceda","Baja","Raro"]
["Malpica de Bergantiños","Medio","Moderado"]
["Manzaneda","Baja","Raro"]
["Mañón","Baja","Raro"]
["Marín","Medio","Moderado"]
["Maside","Baja","Raro"]
["Mazaricos","Baja","Raro"]
["Meaño","Baja","Raro"]
["Meira","Baja","Raro"]
["Meis","Baja","Raro"]
["Melide","Baja","Raro"]
["Melón","Baja","Raro"]
["Mesía","Baja","Raro"]
["Miño","Baja","Raro"]
["Moaña","Medio","Moderado"]
["Moeche","Baja","Raro"]
["Mondariz","Baja","Raro"]
["Mondariz-Balneario","Baja","Raro"]
["Mondoñedo","Baja","Raro"]
["Monfero","Baja","Raro"]
["Monforte de Lemos","Baja","Raro"]
["Montederramo","Baja","Raro"]
["Monterrei","Baja","Raro"]
["Monterroso","Baja","Raro"]
["Moraña","Baja","Raro"]
["Mos","Baja","Raro"]
["Mugardos","Baja","Raro"]
["Muíños","Baja","Raro"]
["Muras","Baja","Raro"]
["Muros","Medio","Moderado"]
["Muxía","Medio","Moderado"]
["Narón","Baja","Raro"]
["Navia de Suarna","Baja","Raro"]
["Neda","Baja","Raro"]
["Negreira","Baja","Raro"]
["Negueira de Muñiz","Baja","Raro"]
["Nigrán","Alto","Probable"]
["Nogueira de Ramuín","Baja","Raro"]
["Noia","Baja","Raro"]
["O Barco de Valdeorras","Baja","Raro"]
["O Bolo","Baja","Raro"]
["O Carballiño","Baja","Raro"]
["O Corgo","Baja","Raro"]
["O Grove","Baja","Raro"]
["O Incio","Baja","Raro"]
["O Irixo","Baja","Raro"]
["O Páramo","Baja","Raro"]
["O Pereiro de Aguiar","Baja","Raro"]
["O Pino","Baja","Raro"]
["O Porriño","Baja","Raro"]
["O Rosal","Baja","Raro"]
["O Saviñao","Baja","Raro"]
["O Valadouro","Baja","Raro"]
["O Vicedo","Baja","Raro"]
["Oia","Medio","Moderado"]
["Oímbra","Baja","Raro"]
["Oleiros","Medio","Moderado"]
["Ordes","Baja","Raro"]
["Oroso","Baja","Raro"]
["Ortigueira","Baja","Raro"]
["Os Blancos","Baja","Raro"]
["Ourense","Baja","Raro"]
["Ourol","Baja","Raro"]
["Outeiro de Rei","Baja","Raro"]
["Outes","Baja","Raro"]
["Oza-Cesuras","Baja","Raro"]
["Paderne","Baja","Raro"]
["Paderne de Allariz","Baja","Raro"]
["Padrenda","Baja","Raro"]
["Padrón","Baja","Raro"]
["Palas de Rei","Baja","Raro"]
["Pantón","Baja","Raro"]
["Parada de Sil","Baja","Raro"]
["Paradela","Baja","Raro"]
["Pazos de Borbén","Baja","Raro"]
["Pedrafita do Cebreiro","Baja","Raro"]
["Petín","Baja","Raro"]
["Piñor","Baja","Raro"]
["Poio","Medio","Moderado"]
["Pol","Baja","Raro"]
["Ponte Caldelas","Baja","Raro"]
["Ponteareas","Medio","Moderado"]
["Ponteceso","Medio","Moderado"]
["Pontecesures","Baja","Raro"]
["Pontedeume","Baja","Raro"]
["Pontedeva","Baja","Raro"]
["Pontevedra","Baja","Raro"]
["Porqueira","Baja","Raro"]
["Portas","Baja","Raro"]
["Porto do Son","Baja","Raro"]
["Portomarín","Baja","Raro"]
["Punxín","Baja","Raro"]
["Quintela de Leirado","Baja","Raro"]
["Quiroga","Baja","Raro"]
["Rábade","Baja","Raro"]
["Rairiz de Veiga","Baja","Raro"]
["Ramirás","Baja","Raro"]
["Redondela","Medio","Moderado"]
["Rianxo","Baja","Raro"]
["Ribadavia","Baja","Raro"]
["Ribadeo","Medio","Moderado"]
["Ribadumia","Medio","Moderado"]
["Ribas de Sil","Baja","Raro"]
["Ribeira","Baja","Raro"]
["Ribeira de Piquín","Baja","Raro"]
["Riós","Baja","Raro"]
["Riotorto","Baja","Raro"]
["Rodeiro","Baja","Raro"]
["Rois","Baja","Raro"]
["Rubiá","Baja","Raro"]
["Sada","Baja","Raro"]
["Salceda de Caselas","Baja","Raro"]
["Salvaterra de Miño","Baja","Raro"]
["Samos","Baja","Raro"]
["San Amaro","Baja","Raro"]
["San Cibrao das Viñas","Baja","Raro"]
["San Cristovo de Cea","Baja","Raro"]
["San Sadurniño","Baja","Raro"]
["San Xoán de Río","Baja","Raro"]
["Sandiás","Baja","Raro"]
["Santa Comba","Baja","Raro"]
["Santiago de Compostela","Baja","Raro"]
["Santiso","Baja","Raro"]
["Sanxenxo","Medio","Moderado"]
["Sarreaus","Baja","Raro"]
["Sarria","Baja","Raro"]
["Silleda","Baja","Raro"]
["Sober","Baja","Raro"]
["Sobrado","Baja","Raro"]
["Soutomaior","Baja","Raro"]
["Taboada","Baja","Raro"]
["Taboadela","Baja","Raro"]
["Teo","Baja","Raro"]
["Toén","Baja","Raro"]
["Tomiño","Baja","Raro"]
["Toques","Baja","Raro"]
["Tordoia","Baja","Raro"]
["Touro","Baja","Raro"]
["Trabada","Baja","Raro"]
["Trasmiras","Baja","Raro"]
["Trazo","Baja","Raro"]
["Triacastela","Baja","Raro"]
["Tui","Medio","Moderado"]
["Val do Dubra","Baja","Raro"]
["Valdoviño","Baja","Raro"]
["Valga","Medio","Moderado"]
["Vedra","Baja","Raro"]
["Verea","Baja","Raro"]
["Verín","Baja","Raro"]
["Viana do Bolo","Baja","Raro"]
["Vigo","Baja","Raro"]
["Vila de Cruces","Baja","Raro"]
["Vilaboa","Medio","Moderado"]
["Vilagarcía de Arousa","Medio","Moderado"]
["Vilalba","Baja","Raro"]
["Vilamarín","Baja","Raro"]
["Vilamartín de Valdeorras","Baja","Raro"]
["Vilanova de Arousa","Baja","Raro"]
["Vilar de Barrio","Baja","Raro"]
["Vilar de Santos","Baja","Raro"]
["Vilardevós","Baja","Raro"]
["Vilariño de Conso","Baja","Raro"]
["Vilarmaior","Baja","Raro"]
["Vilasantar","Baja","Raro"]
["Vimianzo","Baja","Raro"]
["Viveiro","Medio","Moderado"]
["Xermade","Baja","Raro"]
["Xinzo de Limia","Baja","Raro"]
["Xove","Alto","Probable"]
["Xunqueira de Ambía","Baja","Raro"]
["Xunqueira de Espadanedo","Baja","Raro"]
["Zas","Baja","Raro"]

{"sheet":"Fase 2. Indund. Mar","index":14,"n_rows":20,"n_cols":9,"rows_kept":20,"merged":[[0,0,0,8],[11,0,12,0],[11,2,11,6],[13,0,17,0],[19,0,19,6]]}
["Análisis de la probabilidad de ocurrencia  de amenaza climática con vulnerabilidad ALTA o MEDIA en la fase I (No analizar si la vulnerabilidad fue BAJA en la fase I)\nSeleccione en la celda con fondo naranja el ayuntamiento:"]
["CONCELLO","Amenaza climática"]
[null,"Inundaciones marítimas"]
["PROBABILIDAD",{"$f":"VLOOKUP($A$3,INUNDAMAR,3,FALSE())","v":{"$error":"#N/A"}}]
[]
["Análisis de impacto"]
["Área - Categoría de proyecto","Amenaza climática"]
[{"$f":"'Vulnerabilidad. Fase 1'!A10","v":0},{"$f":"B3","v":"Inundaciones marítimas"}]
["IMPACTO GENERAL",{"$f":"VLOOKUP($A$8,IMPACTO,6,FALSE())","v":{"$error":"#N/A"}}]
[]
["Matriz de vulnerabilidad:"]
[null,null,"IMPACTO GENERAL",{"$nulls":5},"LEYENDA"]
[null,null,"Insignificante","Leve","Moderado","Grave","Catastrófico",null,"NIVEL DE RIESGO"]
["PROBABILIDAD","Raro",{"$f":"IF(AND($B$4=$B14,$B$9=C$13),$B$3,\"\")","v":{"$error":"#N/A"}},{"$error":"#N/A"},{"$error":"#N/A"},{"$error":"#N/A"},{"$error":"#N/A"},null,"BAJO"]
[null,"Improbable",{"$error":"#N/A"},{"$error":"#N/A"},{"$error":"#N/A"},{"$error":"#N/A"},{"$error":"#N/A"},null,"MEDIO"]
[null,"Moderado",{"$error":"#N/A"},{"$error":"#N/A"},{"$error":"#N/A"},{"$error":"#N/A"},{"$error":"#N/A"},null,"ALTO"]
[null,"Probable",{"$error":"#N/A"},{"$error":"#N/A"},{"$error":"#N/A"},{"$error":"#N/A"},{"$error":"#N/A"},null,"EXTREMO"]
[null,"Casi seguro",{"$error":"#N/A"},{"$error":"#N/A"},{"$error":"#N/A"},{"$error":"#N/A"},{"$error":"#N/A"}]
[]
[{"$f":"IF(AND(C14=\"\",D14=\"\",C15=\"\",D15=\"\",C16=\"\"),IF(AND(E14=\"\",E15=\"\",D16=\"\",C17=\"\"),\"El nivel de riesgo para esta amenaza climática es ALTO o EXTREMO, por lo que deben proponerse medidas de adaptación para gestionar este riesgo y reducirlo a un nivel aceptable\",\"Esta amenaza tiene un riesgo MEDIO, por lo que deben proponerse, al menos, medidas de seguimiento de los niveles de riesgo\"),\"El nivel de riesgo para esta amenaza climática es BAJO, por lo que no es obligatorio proponer medidas de adaptación ni medidas de seguimiento de los niveles de riesgo\")","v":{"$error":"#N/A"}}]

{"sheet":"Probab. Inund. Fluvial","index":15,"n_rows":315,"n_cols":3,"rows_kept":315,"hidden":true}
["Probabilidad de ocurrencia de inundaciones fluviales:"]
["Municipio","Peligrosidad de acuerdo al Plan ","Probabilidad"]
["A Arnoia","Baja","Raro"]
["A Baña","Baja","Raro"]
["A Bola","Baja","Raro"]
["A Cañiza","Baja","Raro"]
["A Capela","Baja","Raro"]
["A Coruña","Alto","Probable"]
["A Estrada","Baja","Raro"]
["A Fonsagrada","Baja","Raro"]
["A Guarda","Medio","Moderado"]
["A Gudiña","Baja","Raro"]
["A Illa de Arousa","Baja","Raro"]
["A Lama","Baja","Raro"]
["A Laracha","Baja","Raro"]
["A Merca","Baja","Raro"]
["A Mezquita","Baja","Raro"]
["A Pastoriza","Medio","Moderado"]
["A Peroxa","Baja","Raro"]
["A Pobra de Trives","Baja","Raro"]
["A Pobra do Brollón","Baja","Raro"]
["A Pobra do Caramiñal","Baja","Raro"]
["A Pontenova","Alto","Probable"]
["A Rúa","Medio","Moderado"]
["A Teixeira","Baja","Raro"]
["A Veiga","Baja","Raro"]
["Abadín","Baja","Raro"]
["Abegondo","Baja","Raro"]
["Agolada","Baja","Raro"]
["Alfoz","Baja","Raro"]
["Allariz","Medio","Moderado"]
["Ames","Medio","Moderado"]
["Amoeiro","Baja","Raro"]
["Antas de Ulla","Baja","Raro"]
["Aranga","Baja","Raro"]
["Arbo","Baja","Raro"]
["Ares","Baja","Raro"]
["Arteixo","Medio","Moderado"]
["Arzúa","Baja","Raro"]
["As Neves","Baja","Raro"]
["As Nogais","Alto","Probable"]
["As Pontes de García Rodríguez","Baja","Raro"]
["As Somozas","Baja","Raro"]
["Avión","Baja","Raro"]
["Baiona","Alto","Probable"]
["Baleira","Baja","Raro"]
["Baltar","Baja","Raro"]
["Bande","Baja","Raro"]
["Baños de Molgas","Medio","Moderado"]
["Baralla","Baja","Raro"]
["Barbadás","Baja","Raro"]
["Barreiros","Medio","Moderado"]
["Barro","Baja","Raro"]
["Beade","Baja","Raro"]
["Beariz","Baja","Raro"]
["Becerreá","Baja","Raro"]
["Begonte","Baja","Raro"]
["Bergondo","Baja","Raro"]
["Betanzos","Medio","Moderado"]
["Boborás","Baja","Raro"]
["Boimorto","Baja","Raro"]
["Boiro","Baja","Raro"]
["Boqueixón","Baja","Raro"]
["Bóveda","Baja","Raro"]
["Brión","Medio","Moderado"]
["Bueu","Medio","Moderado"]
["Burela","Medio","Moderado"]
["Cabana de Bergantiños","Baja","Raro"]
["Cabanas","Baja","Raro"]
["Caldas de Reis","Baja","Raro"]
["Calvos de Randín","Baja","Raro"]
["Camariñas","Muy alto ","Casi seguro"]
["Cambados","Medio","Moderado"]
["Cambre","Medio","Moderado"]
["Campo Lameiro","Baja","Raro"]
["Cangas","Baja","Raro"]
["Carballeda de Avia","Baja","Raro"]
["Carballeda de Valdeorras","Baja","Raro"]
["Carballedo","Baja","Raro"]
["Carballo","Medio","Moderado"]
["Cariño","Medio","Moderado"]
["Carnota","Medio","Moderado"]
["Carral","Medio","Moderado"]
["Cartelle","Baja","Raro"]
["Castrelo de Miño","Baja","Raro"]
["Castrelo do Val","Baja","Raro"]
["Castro Caldelas","Baja","Raro"]
["Castro de Rei","Medio","Moderado"]
["Castroverde","Baja","Raro"]
["Catoira","Medio","Moderado"]
["Cedeira","Medio","Moderado"]
["Cee","Medio","Moderado"]
["Celanova","Baja","Raro"]
["Cenlle","Baja","Raro"]
["Cerceda","Baja","Raro"]
["Cerdedo-Cotobade","Baja","Raro"]
["Cerdido","Baja","Raro"]
["Cervantes","Baja","Raro"]
["Cervo","Alto","Probable"]
["Chandrexa de Queixa","Baja","Raro"]
["Chantada","Baja","Raro"]
["Coirós","Medio","Moderado"]
["Coles","Baja","Raro"]
["Corcubión","Baja","Raro"]
["Coristanco","Baja","Raro"]
["Cortegada","Baja","Raro"]
["Cospeito","Medio","Moderado"]
["Covelo","Baja","Raro"]
["Crecente","Baja","Raro"]
["Cualedro","Baja","Raro"]
["Culleredo","Medio","Moderado"]
["Cuntis","Medio","Moderado"]
["Curtis","Baja","Raro"]
["Dodro","Medio","Moderado"]
["Dozón","Baja","Raro"]
["Dumbría","Medio","Moderado"]
["Entrimo","Baja","Raro"]
["Esgos","Baja","Raro"]
["Fene","Baja","Raro"]
["Ferrol","Medio","Moderado"]
["Finisterre","Medio","Moderado"]
["Folgoso do Courel","Baja","Raro"]
["Forcarei","Baja","Raro"]
["Fornelos de Montes","Baja","Raro"]
["Foz","Baja","Raro"]
["Frades","Baja","Raro"]
["Friol","Baja","Raro"]
["Gomesende","Baja","Raro"]
["Gondomar","Alto","Probable"]
["Guitiriz","Baja","Raro"]
["Guntín","Baja","Raro"]
["Irixoa","Baja","Raro"]
["Lalín","Baja","Raro"]
["Láncara","Baja","Raro"]
["Larouco","Baja","Raro"]
["Laxe","Alto","Probable"]
["Laza","Baja","Raro"]
["Leiro","Baja","Raro"]
["Lobeira","Baja","Raro"]
["Lobios","Medio","Moderado"]
["Lourenza","Medio","Moderado"]
["Lousame","Baja","Raro"]
["Lugo","Medio","Moderado"]
["Maceda","Baja","Raro"]
["Malpica de Bergantiños","Medio","Moderado"]
["Manzaneda","Baja","Raro"]
["Mañón","Baja","Raro"]
["Marín","Medio","Moderado"]
["Maside","Baja","Raro"]
["Mazaricos","Baja","Raro"]
["Meaño","Baja","Raro"]
["Meira","Medio","Moderado"]
["Meis","Baja","Raro"]
["Melide","Baja","Raro"]
["Melón","Baja","Raro"]
["Mesía","Baja","Raro"]
["Miño","Baja","Raro"]
["Moaña","Medio","Moderado"]
["Moeche","Baja","Raro"]
["Mondariz","Baja","Raro"]
["Mondariz-Balnearios","Medio","Moderado"]
["Mondoñedo","Medio","Moderado"]
["Monfero","Baja","Raro"]
["Monforte de Lemos","Medio","Moderado"]
["Montederramo","Baja","Raro"]
["Monterrei","Baja","Raro"]
["Monterroso","Baja","Raro"]
["Moraña","Baja","Raro"]
["Mos","Medio","Moderado"]
["Mugardos","Baja","Raro"]
["Muíños","Baja","Raro"]
["Muras","Baja","Raro"]
["Muros","Medio","Moderado"]
["Muxía","Medio","Moderado"]
["Narón","Baja","Raro"]
["Navia de Suarma","Alto","Probable"]
["Neda","Baja","Raro"]
["Negreira","Baja","Raro"]
["Negueira de Muñiz","Baja","Raro"]
["Nigrán","Alto","Probable"]
["Nogueira de Ramuín","Baja","Raro"]
["Noia","Baja","Raro"]
["O Barco de Valdeorras","Baja","Raro"]
["O Bolo","Baja","Raro"]
["O Carballiño","Medio","Moderado"]
["O Corgo","Baja","Raro"]
["O Grove","Baja","Raro"]
["O Incio","Baja","Raro"]
["O Irixo","Baja","Raro"]
["O Páramo","Baja","Raro"]
["O Pereiro de Aguiar","Baja","Raro"]
["O Pino","Baja","Raro"]
["O Porriño","Medio","Moderado"]
["O Rosal","Baja","Raro"]
["O Saviñao","Baja","Raro"]
["O Valadouro","Baja","Raro"]
["O Vicedo","Baja","Raro"]
["Oia","Medio","Moderado"]
["Oímbra","Baja","Raro"]
["Oleiros","Medio","Moderado"]
["Ordes","Baja","Raro"]
["Oroso","Baja","Raro"]
["Ortigueira","Baja","Raro"]
["Os Blancos","Baja","Raro"]
["Ourense","Medio","Moderado"]
["Ourol","Baja","Raro"]
["Outeiro de Rei","Baja","Raro"]
["Outes","Baja","Raro"]
["Oza-Cesuras","Baja","Raro"]
["Paderne","Medio","Moderado"]
["Paderne de Allariz","Baja","Raro"]
["Padrenda","Baja","Raro"]
["Padrón","Medio","Moderado"]
["Palas de Rei","Baja","Raro"]
["Pantón","Baja","Raro"]
["Parada de Sil","Baja","Raro"]
["Paradela","Baja","Raro"]
["Pazos de Borbén","Baja","Raro"]
["Pedrafita do Cebreiro","Baja","Raro"]
["Petín","Baja","Raro"]
["Piñor","Baja","Raro"]
["Poio","Medio","Moderado"]
["Pol","Baja","Raro"]
["Ponte Caldelas","Baja","Raro"]
["Ponteareas","Medio","Moderado"]
["Ponteceso","Medio","Moderado"]
["Pontecesures","Medio","Moderado"]
["Pontedeume","Baja","Raro"]
["Pontedeva","Baja","Raro"]
["Pontevedra","Baja","Raro"]
["Porqueira","Baja","Raro"]
["Portas","Baja","Raro"]
["Porto do Son","Baja","Raro"]
["Portomarín","Baja","Raro"]
["Punxín","Baja","Raro"]
["Quintela de Leirado","Baja","Raro"]
["Quiroga","Medio","Moderado"]
["Rábade","Baja","Raro"]
["Rairiz de Veiga","Baja","Raro"]
["Ramirás","Baja","Raro"]
["Redondela","Medio","Moderado"]
["Rianxo","Baja","Raro"]
["Ribadavia","Baja","Raro"]
["Ribadeo","Medio","Moderado"]
["Ribadumia","Medio","Moderado"]
["Ribas de Sil","Baja","Raro"]
["Ribeira","Baja","Raro"]
["Ribeira de Piquín","Baja","Raro"]
["Riós","Baja","Raro"]
["Riotorto","Alto","Probable"]
["Rodeiro","Baja","Raro"]
["Rois","Medio","Moderado"]
["Rubiá","Baja","Raro"]
["Sada","Baja","Raro"]
["Salceda de Caselas","Medio","Moderado"]
["Salvaterra de Miño","Baja","Raro"]
["Samos","Baja","Raro"]
["San Amaro","Baja","Raro"]
["San Cibrao das Viñas","Medio","Moderado"]
["San Cristovo de Cea","Baja","Raro"]
["San Sadurniño","Baja","Raro"]
["San Xoán de Río","Baja","Raro"]
["Sandiás","Baja","Raro"]
["Santa Comba","Baja","Raro"]
["Santiago de Compostela","Baja","Raro"]
["Santiso","Baja","Raro"]
["Sanxenxo","Medio","Moderado"]
["Sarreaus","Baja","Raro"]
["Sarria","Baja","Raro"]
["Silleda","Baja","Raro"]
["Sober","Baja","Raro"]
["Sobrado","Baja","Raro"]
["Soutomaior","Baja","Raro"]
["Taboada","Baja","Raro"]
["Taboadela","Baja","Raro"]
["Teo","Baja","Raro"]
["Toén","Baja","Raro"]
["Tomiño","Baja","Raro"]
["Toques","Baja","Raro"]
["Tordoia","Baja","Raro"]
["Touro","Baja","Raro"]
["Trabada","Baja","Raro"]
["Trasmiras","Baja","Raro"]
["Trazo","Baja","Raro"]
["Triacastela","Baja","Raro"]
["Tui","Medio","Moderado"]
["Val do Dubra","Baja","Raro"]
["Valdoviño","Baja","Raro"]
["Valga","Medio","Moderado"]
["Vedra","Baja","Raro"]
["Verea","Baja","Raro"]
["Verín","Baja","Raro"]
["Viana do Bolo","Baja","Raro"]
["Vigo","Baja","Raro"]
["Vila de Cruces","Baja","Raro"]
["Vilaboa","Medio","Moderado"]
["Vilagarcia de Arousa","Medio","Moderado"]
["Vilalba","Medio","Moderado"]
["Vilamarín","Baja","Raro"]
["Vilamartín de Valdeorras","Medio","Moderado"]
["Vilanova de Arousa","Baja","Raro"]
["Vilar de Barrio","Baja","Raro"]
["Vilar de Santos","Baja","Raro"]
["Vilardevós","Baja","Raro"]
["Vilariño de Conso","Baja","Raro"]
["Vilarmaior","Baja","Raro"]
["Vilasantar","Baja","Raro"]
["Vimianzo","Baja","Raro"]
["Viveiro","Medio","Moderado"]
["Xermade","Baja","Raro"]
["Xinzo de Limia","Medio","Moderado"]
["Xove","Alto","Probable"]
["Xunqueira de Ambía","Baja","Raro"]
["Xunqueira de Espadanedo","Baja","Raro"]
["Zas","Baja","Raro"]

{"sheet":"Fase 2. Indund. Fluvial","index":16,"n_rows":20,"n_cols":9,"rows_kept":20,"merged":[[0,0,0,8],[11,0,12,0],[11,2,11,6],[13,0,17,0],[19,0,19,6]]}
["Análisis de la probabilidad de ocurrencia  de amenaza climática con vulnerabilidad ALTA o MEDIA en la fase I (No analizar si la vulnerabilidad fue BAJA en la fase I)\nSeleccione en la celda con fondo naranja el ayuntamiento:"]
["CONCELLO","Amenaza climática"]
[null,"Inundaciones fluviales"]
["PROBABILIDAD",{"$f":"VLOOKUP($A$3,INUNDARÍO,3,FALSE())","v":{"$error":"#N/A"}}]
[]
["Análisis de impacto"]
["Área - Categoría de proyecto","Amenaza climática"]
[{"$f":"'Vulnerabilidad. Fase 1'!A10","v":0},{"$f":"B3","v":"Inundaciones fluviales"}]
["IMPACTO GENERAL",{"$f":"VLOOKUP($A$8,IMPACTO,7,FALSE())","v":{"$error":"#N/A"}}]
[]
["Matriz de vulnerabilidad:"]
[null,null,"IMPACTO GENERAL",{"$nulls":5},"LEYENDA"]
[null,null,"Insignificante","Leve","Moderado","Grave","Catastrófico",null,"NIVEL DE RIESGO"]
["PROBABILIDAD","Raro",{"$f":"IF(AND($B$4=$B14,$B$9=C$13),$B$3,\"\")","v":{"$error":"#N/A"}},{"$error":"#N/A"},{"$error":"#N/A"},{"$error":"#N/A"},{"$error":"#N/A"},null,"BAJO"]
[null,"Improbable",{"$error":"#N/A"},{"$error":"#N/A"},{"$error":"#N/A"},{"$error":"#N/A"},{"$error":"#N/A"},null,"MEDIO"]
[null,"Moderado",{"$error":"#N/A"},{"$error":"#N/A"},{"$error":"#N/A"},{"$error":"#N/A"},{"$error":"#N/A"},null,"ALTO"]
[null,"Probable",{"$error":"#N/A"},{"$error":"#N/A"},{"$error":"#N/A"},{"$error":"#N/A"},{"$error":"#N/A"},null,"EXTREMO"]
[null,"Casi seguro",{"$error":"#N/A"},{"$error":"#N/A"},{"$error":"#N/A"},{"$error":"#N/A"},{"$error":"#N/A"}]
[]
[{"$f":"IF(AND(C14=\"\",D14=\"\",C15=\"\",D15=\"\",C16=\"\"),IF(AND(E14=\"\",E15=\"\",D16=\"\",C17=\"\"),\"El nivel de riesgo para esta amenaza climática es ALTO o EXTREMO, por lo que deben proponerse medidas de adaptación para gestionar este riesgo y reducirlo a un nivel aceptable\",\"Esta amenaza tiene un riesgo MEDIO, por lo que deben proponerse, al menos, medidas de seguimiento de los niveles de riesgo\"),\"El nivel de riesgo para esta amenaza climática es BAJO, por lo que no es obligatorio proponer medidas de adaptación ni medidas de seguimiento de los niveles de riesgo\")","v":{"$error":"#N/A"}}]